Workbook

Sheet ES EB
B1: gene | C1: baseMean | D1: log2FoldChange | E1: lfcSE | F1: stat | G1: pvalue | H1: padj | I1: WTES | J1: KOES | K1: 3ES | L1: 72ES | M1: WTEB1 | N1: WTEB2 | O1: KOEB1 | P1: KOEB2 | Q1: 3EB1 | R1: 3EB2 | S1: 72EB1 | T1: 72EB2 | U1: ES ave
A2: 9321 | B2: Hsp90ab1 | C2: 51381.1265 | D2: 0.1352209416 | E2: 0.01269886187 | F2: 10.6482725 | G2: 1.78E-26 | H2: 3.54E-25 | I2: 53170.19864 | J2: 64612.47163 | K2: 52332.98266 | L2: 52000.09638 | M2: 49077.72273 | N2: 48719.14933 | O2: 53245.7709 | P2: 52935.22844 | Q2: 48279.17499 | R2: 48518.76542 | S2: 47382.42622 | T2: 46299.5306 | U2: =AVERAGE(I2:L2) -> 55528.93733
A3: 5990 | B3: Eef1a1 | C3: 38947.62974 | D3: 0.1341484753 | E3: 0.01435700659 | F3: 9.343763577 | G3: 9.30E-21 | H3: 1.42E-19 | I3: 39960.47121 | J3: 43828.76143 | K3: 41688.54567 | L3: 39932.69916 | M3: 38197.8756 | N3: 38748.12201 | O3: 36420.99243 | P3: 36087.69561 | Q3: 36070.89901 | R3: 36679.64326 | S3: 39928.61014 | T3: 39827.24136 | U3: 41352.61937
A4: 5996 | B4: Eef2 | C4: 31609.67384 | D4: -0.0287753459 | E4: 0.01630591276 | F4: -1.7647185 | G4: 0.07761108779 | H4: 0.1354368639 | I4: 29737.3636 | J4: 32070.36114 | K4: 31636.38515 | L4: 30895.23576 | M4: 32487.46501 | N4: 31912.53186 | O4: 32637.63012 | P4: 32255.21515 | Q4: 30255.63793 | R4: 30400.32984 | S4: 32596.05231 | T4: 32431.87822 | U4: 31084.83641
A5: 12689 | B5: Ncl | C5: 22634.36189 | D5: 0.3356490943 | E5: 0.01912082139 | F5: 17.55411483 | G5: 5.53E-69 | H5: 3.97E-67 | I5: 27238.47469 | J5: 27371.96681 | K5: 25969.59091 | L5: 24656.28357 | M5: 19713.04782 | N5: 19811.87967 | O5: 22413.10244 | P5: 22085.68338 | Q5: 21460.27892 | R5: 21683.25413 | S5: 19709.05135 | T5: 19499.72893 | U5: 26309.079
A6: 16947 | B6: Rpl4 | C6: 18441.26063 | D6: 0.2378571918 | E6: 0.02208340061 | F6: 10.77085889 | G6: 4.73E-27 | H6: 9.60E-26 | I6: 20442.86887 | J6: 19845.94126 | K6: 20591.05889 | L6: 20252.31732 | M6: 17492.2681 | N6: 17510.87336 | O6: 17849.86272 | P6: 17593.52067 | Q6: 17173.78228 | R6: 17465.59831 | S6: 17689.43912 | T6: 17387.59664 | U6: 20283.04658
A7: 1671 | B7: Actb | C7: 20050.17606 | D7: -0.3185358257 | E7: 0.02213037828 | F7: -14.39360058 | G7: 5.68E-47 | H7: 2.47E-45 | I7: 15911.90727 | J7: 22461.57176 | K7: 19868.04052 | L7: 16615.76615 | M7: 22884.59524 | N7: 22221.52119 | O7: 16945.5877 | P7: 16933.83841 | Q7: 19798.49212 | R7: 19879.46097 | S7: 23624.97961 | T7: 23456.35178 | U7: 18714.32142
A8: 2646 | B8: Atp5b | C8: 14837.99017 | D8: 0.5034180904 | E8: 0.02519992205 | F8: 19.97697014 | G8: 8.74E-89 | H8: 9.37E-87 | I8: 18246.82489 | J8: 18954.0103 | K8: 18337.73042 | L8: 18146.18225 | M8: 12891.66693 | N8: 13061.51197 | O8: 13396.66706 | P8: 13611.50084 | Q8: 12948.8333 | R8: 12810.20188 | S8: 12961.38627 | T8: 12689.36595 | U8: 18421.18697
A9: 8386 | B9: Gnb2l1 | C9: 18580.37901 | D9: -0.03317871067 | E9: 0.02183541501 | F9: -1.519490729 | G9: 0.1286390199 | H9: 0.2064516592 | I9: 17646.99116 | J9: 17493.87922 | K9: 19738.87385 | L9: 17792.42723 | M9: 19075.72003 | N9: 19407.30713 | O9: 18367.78744 | P9: 18549.71813 | Q9: 18093.02635 | R9: 18029.12643 | S9: 19314.70729 | T9: 19454.98387 | U9: 18168.04286
A10: 20336 | B10: Tubb5 | C10: 19004.11699 | D10: -0.2744141486 | E10: 0.02140661569 | F10: -12.81912809 | G10: 1.28E-37 | H10: 4.05E-36 | I10: 15635.83316 | J10: 17784.18651 | K10: 17252.41527 | L10: 16443.61798 | M10: 20114.71525 | N10: 20091.89631 | O10: 20923.91936 | P10: 20908.16765 | Q10: 18879.24806 | R10: 18937.31239 | S10: 20666.88965 | T10: 20411.20225 | U10: 16779.01323
A11: 21439 | B11: Ywhae | C11: 15927.25439 | D11: 0.06934596642 | E11: 0.02399261783 | F11: 2.890304297 | G11: 0.003848690814 | H11: 0.01003295701 | I11: 16707.50263 | J11: 16073.85638 | K11: 16623.12151 | L11: 15905.10321 | M11: 15509.47052 | N11: 15302.5816 | O11: 16359.48351 | P11: 16141.707 | Q11: 16052.02656 | R11: 15819.03956 | S11: 15440.55709 | T11: 15192.60315 | U11: 16327.39593
A12: 12774 | B12: Nedd4 | C12: 16664.49538 | D12: -0.2542860829 | E12: 0.02575461006 | F12: -9.873420033 | G12: 5.43E-23 | H12: 9.18E-22 | I12: 14884.57698 | J12: 18679.9373 | K12: 13864.94035 | L12: 14240.3737 | M12: 16779.48255 | N12: 16814.10955 | O12: 16445.60494 | P12: 17007.32633 | Q12: 18087.07012 | R12: 17473.14556 | S12: 17958.44903 | T12: 17738.92818 | U12: 15417.45708
A13: 14630 | B13: Pabpc1 | C13: 14198.09545 | D13: 0.2783220175 | E13: 0.02696199423 | F13: 10.3227534 | G13: 5.56E-25 | H13: 1.04E-23 | I13: 16467.40182 | J13: 13228.08095 | K13: 15680.36228 | L13: 15343.88758 | M13: 13708.93244 | N13: 13972.73669 | O13: 13518.67242 | P13: 13651.66284 | Q13: 13693.36143 | R13: 13483.16516 | S13: 14053.72951 | T13: 13575.1523 | U13: 15179.93316
A14: 19930 | B14: Top2a | C14: 11083.72423 | D14: 0.4752647121 | E14: 0.0287456788 | F14: 16.53343152 | G14: 2.11E-61 | H14: 1.32E-59 | I14: 14423.61689 | J14: 15001.43832 | K14: 14091.76964 | L14: 14729.70328 | M14: 8556.909222 | N14: 8662.722142 | O14: 9868.080645 | P14: 9661.952411 | Q14: 10405.52519 | R14: 10351.05571 | S14: 8650.094971 | T14: 8601.822377 | U14: 14561.63203
A15: 20060 | B15: Trim28 | C15: 9856.70344 | D15: 0.9013346476 | E15: 0.03200125415 | F15: 28.16560387 | G15: 1.54E-174 | H15: 4.43E-172 | I15: 13865.61257 | J15: 14829.54585 | K15: 14387.90788 | L15: 13541.69176 | M15: 7270.64475 | N15: 7273.877068 | O15: 8960.217226 | P15: 8993.725049 | Q15: 7244.75509 | R15: 7566.119828 | S15: 7219.451393 | T15: 7126.89281 | U15: 14156.18952
A16: 10271 | B16: Kpnb1 | C16: 12055.36875 | D16: 0.04214571315 | E16: 0.02706302197 | F16: 1.557317331 | G16: 0.1193951626 | H16: 0.1939470716 | I16: 12716.1404 | J16: 12451.69994 | K16: 12040.06721 | L16: 12616.63184 | M16: 11309.37588 | N16: 11217.52279 | O16: 11871.60005 | P16: 11889.66179 | Q16: 12289.67772 | R16: 12398.87667 | S16: 11984.18741 | T16: 11878.9833 | U16: 12456.13485
A17: 9331 | B17: Hspa4 | C17: 9653.105707 | D17: 0.5730983552 | E17: 0.03049095869 | F17: 18.79568173 | G17: 8.19E-79 | H17: 7.21E-77 | I17: 13281.67401 | J17: 11738.34616 | K17: 12659.12215 | L17: 11834.71344 | M17: 7797.688135 | N17: 7899.466083 | O17: 8652.811562 | P17: 8666.447453 | Q17: 8934.337601 | R17: 8922.109383 | S17: 7767.660969 | T17: 7682.89154 | U17: 12378.46394
A18: 17421 | B18: Serbp1 | C18: 10159.2436 | D18: 0.4042074397 | E18: 0.03331476405 | F18: 12.13298221 | G18: 7.06E-34 | H18: 1.93E-32 | I18: 12272.74866 | J18: 12928.22408 | K18: 12192.07434 | L18: 11899.03253 | M18: 8546.461225 | N18: 8812.563823 | O18: 10145.58303 | P18: 9743.130927 | Q18: 9398.923156 | R18: 9169.910814 | S18: 8456.489359 | T18: 8345.781233 | U18: 12323.0199
A19: 6114 | B19: Eif4g2 | C19: 14795.85977 | D19: -0.381076653 | E19: 0.02447991359 | F19: -15.56691169 | G19: 1.22E-54 | H19: 6.55E-53 | I19: 12099.57491 | J19: 12871.88154 | K19: 11747.07938 | L19: 12279.27189 | M19: 15622.07671 | N19: 15671.56674 | O19: 15248.27783 | P19: 15351.28461 | Q19: 15674.79897 | R19: 15824.07106 | S19: 17581.42757 | T19: 17579.00604 | U19: 12249.45193
A20: 13060 | B20: Npm1 | C20: 11825.79806 | D20: 0.1250450834 | E20: 0.03004731866 | F20: 4.161605392 | G20: 3.16E-05 | H20: 0.0001241321796 | I20: 12187.41667 | J20: 12385.80782 | K20: 12284.22374 | L20: 11369.97645 | M20: 10907.70846 | N20: 10994.63329 | O20: 13826.07808 | P20: 13978.08592 | Q20: 11334.6963 | R20: 11044.14499 | S20: 10595.32189 | T20: 11001.48306 | U20: 12056.85617
A21: 1999 | B21: Aldoa | C21: 13175.43546 | D21: -0.2545212218 | E21: 0.02711269536 | F21: -9.387529291 | G21: 6.14E-21 | H21: 9.48E-20 | I21: 11884.57175 | J21: 11054.59609 | K21: 13155.31122 | L21: 10440.50247 | M21: 14804.81119 | N21: 14466.27772 | O21: 15919.30731 | P21: 15874.24515 | Q21: 14223.46546 | R21: 14139.77606 | S21: 11191.42338 | T21: 10950.93773 | U21: 11633.74538
A22: 17898 | B22: Slc2a3 | C22: 13535.39703 | D22: -0.4707026013 | E22: 0.02745775636 | F22: -17.14279183 | G22: 7.12E-66 | H22: 4.81E-64 | I22: 10353.61537 | J22: 14408.40928 | K22: 11674.62002 | L22: 9778.394142 | M22: 13697.32355 | N22: 13565.35462 | O22: 20327.05 | P22: 20861.16956 | Q22: 14473.62691 | R22: 14244.17971 | S22: 9560.04135 | T22: 9480.979832 | U22: 11553.7597
A23: 15264 | B23: Pkm2 | C23: 12660.20851 | D23: -0.2440166324 | E23: 0.04676874358 | F23: -5.21751524 | G23: 1.81E-07 | H23: 9.81E-07 | I23: 11177.65473 | J23: 11063.19072 | K23: 11252.46551 | L23: 10101.88135 | M23: 13690.35822 | N23: 13069.94056 | O23: 16822.38621 | P23: 16827.87909 | Q23: 12857.50451 | R23: 13590.08456 | S23: 10949.92585 | T23: 10519.23081 | U23: 10898.79808
A24: 15868 | B24: Prpf8 | C24: 8309.720777 | D24: 0.3601836634 | E24: 0.03492505841 | F24: 10.31304398 | G24: 6.15E-25 | H24: 1.15E-23 | I24: 9800.630579 | J24: 12368.61857 | K24: 10142.73471 | L24: 10868.66586 | M24: 6642.604065 | N24: 6443.192253 | O24: 7028.465681 | P24: 7066.803435 | Q24: 7619.99727 | R24: 7647.881722 | S24: 7139.971194 | T24: 6947.083981 | U24: 10795.16243
A25: 3432 | B25: Canx | C25: 9937.72394 | D25: 0.1264640809 | E25: 0.03062605424 | F25: 4.12929723 | G25: 3.64E-05 | H25: 0.0001410647819 | I25: 11234.54273 | J25: 10515.04471 | K25: 10176.60159 | L25: 10623.37048 | M25: 8901.69311 | N25: 9015.786601 | O25: 9746.075285 | P25: 9714.932074 | Q25: 10443.24795 | R25: 10167.40591 | S25: 9392.929137 | T25: 9321.057694 | U25: 10637.38988
A26: 9174 | B26: Hnrnpa2b1 | C26: 12565.66184 | D26: -0.3458630541 | E26: 0.02962617164 | F26: -11.67424054 | G26: 1.73E-31 | H26: 4.20E-30 | I26: 10236.49302 | J26: 11513.93099 | K26: 10356.17477 | L26: 10011.70851 | M26: 13344.41344 | N26: 13560.67207 | O26: 14256.68524 | P26: 14249.82032 | Q26: 13123.54923 | R26: 12914.60553 | S26: 13341.46466 | T26: 13878.42433 | U26: 10529.57682
A27: 16954 | B27: Rpl8 | C27: 10448.16093 | D27: 0.1271260206 | E27: 0.03024328074 | F27: 4.203446765 | G27: 2.63E-05 | H27: 0.0001045207716 | I27: 10770.23628 | J27: 9644.122835 | K27: 11377.69418 | L27: 10265.20141 | M27: 10846.18137 | N27: 10762.37869 | O27: 10986.46312 | P27: 10734.36333 | Q27: 9792.034011 | R27: 9918.346608 | S27: 10133.72535 | T27: 10147.18397 | U27: 10514.31368
A28: 9187 | B28: Hnrnpu | C28: 11158.06262 | D28: -0.2275532421 | E28: 0.02965252735 | F28: -7.673991477 | G28: 1.67E-14 | H28: 1.73E-13 | I28: 10133.59268 | J28: 12021.96875 | K28: 9949.772296 | L28: 9442.925922 | M28: 10820.64182 | N28: 10837.29953 | O28: 12388.32864 | P28: 12278.46415 | Q28: 11934.28963 | R28: 11807.67528 | S28: 11303.51084 | T28: 10978.28193 | U28: 10387.06491
A29: 12473 | B29: Mybbp1a | C29: 7712.373138 | D29: 0.5456199673 | E29: 0.03785127907 | F29: 14.41483566 | G29: 4.17E-47 | H29: 1.84E-45 | I29: 10402.13748 | J29: 9818.880185 | K29: 10302.61786 | L29: 10337.08746 | M29: 6165.478887 | N29: 5930.921008 | O29: 6959.090084 | P29: 6881.374615 | Q29: 7018.418538 | R29: 7216.430499 | S29: 5872.36392 | T29: 5643.677122 | U29: 10215.18075
A30: 9176 | B30: Hnrnpab | C30: 11772.7953 | D30: -0.3928324982 | E30: 0.02853752029 | F30: -13.76547417 | G30: 4.11E-43 | H30: 1.60E-41 | I30: 9671.795999 | J30: 11111.89358 | K30: 9989.939983 | L30: 9593.634389 | M30: 12054.66631 | N30: 12287.95429 | O30: 13474.41557 | P30: 13329.51231 | Q30: 12708.59889 | R30: 12690.70373 | S30: 12104.42669 | T30: 12256.00181 | U30: 10091.81599
A31: 5299 | B31: Ddb1 | C31: 11187.87222 | D31: -0.2644417119 | E31: 0.02865886729 | F31: -9.227221343 | G31: 2.78E-20 | H31: 4.15E-19 | I31: 9722.827878 | J31: 10254.34112 | K31: 10246.69814 | L31: 10014.8614 | M31: 11767.92685 | N31: 11681.09549 | O31: 11024.73931 | P31: 11031.73305 | Q31: 11592.79939 | R31: 11748.55514 | S31: 12573.15607 | T31: 12595.73278 | U31: 10059.68214
A32: 2645 | B32: Atp5a1 | C32: 9095.886096 | D32: 0.2226460832 | E32: 0.03216392877 | F32: 6.922229085 | G32: 4.45E-12 | H32: 3.89E-11 | I32: 10097.61938 | J32: 9988.862745 | K32: 10078.15137 | L32: 9568.411215 | M32: 8832.039799 | N32: 8709.547667 | O32: 8603.770192 | P32: 8598.086598 | Q32: 8704.030232 | R32: 8612.672064 | S32: 8607.297941 | T32: 8750.143946 | U32: 9933.261179
A33: 17002 | B33: Rps3 | C33: 10044.70995 | D33: -0.01815706728 | E33: 0.03129659073 | F33: -0.5801611887 | G33: 0.5618059237 | H33: 0.667624181 | I33: 9797.284227 | J33: 8958.46285 | K33: 10339.63514 | L33: 9319.332367 | M33: 10562.92457 | N33: 10531.9971 | O33: 10720.92204 | P33: 10519.88115 | Q33: 9782.106969 | R33: 10035.32901 | S33: 9912.60736 | T33: 10056.03664 | U33: 9603.678646
A34: 3778 | B34: Cct4 | C34: 9270.911645 | D34: 0.0007101001461 | E34: 0.03165554597 | F34: 0.02243209284 | G34: 0.9821032804 | H34: 0.9882049135 | I34: 9621.600708 | J34: 8754.101795 | K34: 9941.896279 | L34: 9127.005662 | M34: 9082.791717 | N34: 9017.659622 | O34: 9450.630931 | P34: 9314.166559 | Q34: 9692.763593 | R34: 9554.820651 | S34: 8880.383752 | T34: 8813.118466 | U34: 9361.151111
A35: 6118 | B35: Eif5a | C35: 8683.332119 | D35: 0.1846998107 | E35: 0.03298943175 | F35: 5.598756961 | G35: 2.16E-08 | H35: 1.31E-07 | I35: 9056.067095 | J35: 9420.662617 | K35: 9703.252964 | L35: 9011.609639 | M35: 8542.978559 | N35: 8582.182239 | O35: 8104.98357 | P35: 8166.558698 | Q35: 7884.056581 | R35: 8035.307309 | S35: 8838.605699 | T35: 8853.72046 | U35: 9297.898079
A36: 6104 | B36: Eif4b | C36: 8488.142132 | D36: 0.108327524 | E36: 0.03573616312 | F36: 3.031313787 | G36: 0.002434920583 | H36: 0.00665515816 | I36: 8772.463701 | J36: 9037.72438 | K36: 8877.058779 | L36: 8921.436791 | M36: 8227.216884 | N36: 8340.56253 | O36: 8474.588045 | P36: 8428.893481 | Q36: 8384.379487 | R36: 7933.419411 | S36: 8185.441501 | T36: 8274.520591 | U36: 8902.170913
A37: 6088 | B37: Eif3a | C37: 8318.06958 | D37: 0.06588245769 | E37: 0.03547456373 | F37: 1.857174571 | G37: 0.06328632152 | H37: 0.1142365377 | I37: 8940.617926 | J37: 9273.599055 | K37: 8365.117673 | L37: 8699.472856 | M37: 7690.886392 | N37: 7713.100493 | O37: 7914.798743 | P37: 7855.516805 | Q37: 8582.920322 | R37: 8507.01054 | S37: 8319.946453 | T37: 7953.847702 | U37: 8819.701877
A38: 9320 | B38: Hsp90aa1 | C38: 5996.506213 | D38: 0.8065419431 | E38: 0.0410976756 | F38: 19.62500144 | G38: 9.46E-86 | H38: 9.60E-84 | I38: 8913.847104 | J38: 8621.362606 | K38: 8465.93069 | L38: 9083.495687 | M38: 4139.728434 | N38: 4269.551378 | O38: 5185.22783 | P38: 5051.012709 | Q38: 5164.047134 | R38: 5041.564135 | S38: 4030.053671 | T38: 3992.253175 | U38: 8771.159022
A39: 15499 | B39: Polr2a | C39: 5098.895586 | D39: 1.018895943 | E39: 0.04567337803 | F39: 22.30831146 | G39: 3.07E-110 | H39: 4.49E-108 | I39: 6942.845342 | J39: 9701.420327 | K39: 7681.479396 | L39: 9087.279163 | M39: 3179.673634 | N39: 3053.024236 | O39: 3853.934041 | P39: 3802.572586 | Q39: 3438.727272 | R39: 3416.389269 | S39: 3540.944755 | T39: 3488.457009 | U39: 8353.256057
A40: 12643 | B40: Nasp | C40: 7099.343128 | D40: 0.2686557206 | E40: 0.03795185198 | F40: 7.078856671 | G40: 1.45E-12 | H40: 1.33E-11 | I40: 7827.955641 | J40: 9238.265601 | K40: 8228.862578 | L40: 8008.357877 | M40: 5930.979408 | N40: 6096.683367 | O40: 7395.677895 | P40: 7206.088678 | Q40: 6563.760024 | R40: 6444.095076 | S40: 6113.861447 | T40: 6137.529944 | U40: 8325.860424
A41: 20736 | B41: Vdac1 | C41: 6787.167959 | D41: 0.5384353389 | E41: 0.03958313142 | F41: 13.60264637 | G41: 3.86E-42 | H41: 1.42E-40 | I41: 8530.689716 | J41: 8377.848266 | K41: 8157.978425 | L41: 8100.422464 | M41: 6705.292045 | N41: 6417.906469 | O41: 5588.323973 | P41: 5597.045042 | Q41: 5831.144341 | R41: 5908.240205 | S41: 6187.227785 | T41: 6043.896775 | U41: 8291.734717
A42: 9335 | B42: Hspa9 | C42: 6562.893769 | D42: 0.5108866209 | E42: 0.03877899919 | F42: 13.17431165 | G42: 1.23E-39 | H42: 4.15E-38 | I42: 8343.293962 | J42: 8137.1988 | K42: 8097.333094 | L42: 8151.499392 | M42: 5457.336895 | N42: 5348.411476 | O42: 6408.86983 | P42: 6461.809864 | Q42: 5918.502309 | R42: 5803.836556 | S42: 5249.76903 | T42: 5376.864021 | U42: 8182.331312
A43: 5334 | B43: Ddx3x | C43: 9240.355817 | D43: -0.3040953726 | E43: 0.03415834334 | F43: -8.902521109 | G43: 5.46E-19 | H43: 7.55E-18 | I43: 8028.736805 | J43: 8735.002631 | K43: 7642.886912 | L43: 8309.774811 | M43: 8973.668197 | N43: 9349.18434 | O43: 10059.4616 | P43: 10066.99048 | Q43: 10062.04955 | R43: 9787.527578 | S43: 9951.328483 | T43: 9917.658417 | U43: 8179.10029
A44: 21382 | B44: Xpo1 | C44: 6799.54942 | D44: 0.2308303798 | E44: 0.03772109231 | F44: 6.119398079 | G44: 9.39E-10 | H44: 6.53E-09 | I44: 8299.791377 | J44: 8332.96523 | K44: 7920.122711 | L44: 8002.052083 | M44: 5529.311982 | N44: 5567.554934 | O44: 6404.085306 | P44: 6346.450921 | Q44: 7209.01774 | R44: 6959.823942 | S44: 5470.887019 | T44: 5552.52979 | U44: 8138.73285
A45: 6113 | B45: Eif4g1 | C45: 8176.62677 | D45: -0.02568524044 | E45: 0.03488565453 | F45: -0.7362694146 | G45: 0.4615667557 | H45: 0.5749380044 | I45: 8114.0688 | J45: 8798.984831 | K45: 7723.222286 | L45: 7802.158426 | M45: 8310.800857 | N45: 8171.990639 | O45: 8075.080295 | P45: 7919.605107 | Q45: 8384.379487 | R45: 8157.321211 | S45: 8312.813615 | T45: 8349.095681 | U45: 8109.608586
A46: 3776 | B46: Cct2 | C46: 8036.049768 | D46: -0.02676371862 | E46: 0.03658970395 | F46: -0.7314549104 | G46: 0.464501336 | H46: 0.5778841497 | I46: 8017.861159 | J46: 7823.017553 | K46: 8224.92457 | L46: 7857.018831 | M46: 8028.704949 | N46: 7741.195808 | O46: 8400.427924 | P46: 8392.149521 | Q46: 8108.407725 | R46: 8217.699225 | S46: 7683.085886 | T46: 7938.104072 | U46: 7980.705528
A47: 20115 | B47: Trip12 | C47: 6155.569751 | D47: 0.4801947525 | E47: 0.03962458792 | F47: 12.11860559 | G47: 8.42E-34 | H47: 2.28E-32 | I47: 8099.846801 | J47: 7858.351006 | K47: 7499.543403 | L47: 8413.189826 | M47: 4889.662412 | N47: 4900.759456 | O47: 5009.396575 | P47: 4854.47525 | Q47: 5833.129749 | R47: 5784.968427 | S47: 5329.249228 | T47: 5394.264876 | U47: 7967.732759
A48: 9374 | B48: Huwe1 | C48: 7370.726609 | D48: -0.03950668525 | E48: 0.03618049365 | F48: -1.091933284 | G48: 0.2748624268 | H48: 0.3828809209 | I48: 8708.046411 | J48: 5861.533415 | K48: 8096.545492 | L48: 8963.685608 | M48: 7204.474105 | N48: 7090.32101 | O48: 3949.62452 | P48: 4062.343837 | Q48: 8900.585659 | R48: 8991.292524 | S48: 8413.692329 | T48: 8206.574397 | U48: 7907.452732
A49: 7019 | B49: Fn1 | C49: 10403.20911 | D49: -0.7417260239 | E49: 0.03112399751 | F49: -23.83132255 | G49: 1.58E-125 | H49: 2.74E-123 | I49: 6779.710646 | J49: 9106.48137 | K49: 7295.554562 | L49: 7630.010261 | M49: 13517.38583 | N49: 13372.43346 | O49: 6295.237386 | P49: 6178.112314 | Q49: 11396.24396 | R49: 11288.17279 | S49: 16023.41188 | T49: 15955.75491 | U49: 7702.93921
A50: 14717 | B50: Parp1 | C50: 5468.252029 | D50: 0.9320139916 | E50: 0.04389500925 | F50: 21.23280089 | G50: 4.75E-100 | H50: 6.24E-98 | I50: 7929.182811 | J50: 7767.629977 | K50: 7524.746657 | L50: 7333.637961 | M50: 4016.674251 | N50: 3913.677387 | O50: 5317.99837 | P50: 5319.329067 | Q50: 4244.803065 | R50: 4084.321044 | S50: 4148.254992 | T50: 4018.768763 | U50: 7638.799352
A51: 11415 | B51: Mid1 | C51: 7766.917155 | D51: -0.3737219879 | E51: 0.03890155195 | F51: -9.60686577 | G51: 7.48E-22 | H51: 1.20E-20 | I51: 6176.530565 | J51: 9671.816623 | K51: 8803.81182 | L51: 5644.315855 | M51: 9649.305311 | N51: 9396.009865 | O51: 7712.652606 | P51: 7801.682632 | Q51: 7828.465147 | R51: 8149.77396 | S51: 6302.372175 | T51: 6066.269302 | U51: 7574.118716
A52: 9322 | B52: Hsp90b1 | C52: 8127.079214 | D52: -0.1987396391 | E52: 0.03487792107 | F52: -5.698150379 | G52: 1.21E-08 | H52: 7.57E-08 | I52: 7387.073668 | J52: 7555.629258 | K52: 6871.037245 | L52: 7091.495487 | M52: 8913.301995 | N52: 8747.008087 | O52: 8100.199046 | P52: 8277.645088 | Q52: 8499.533171 | R52: 8460.469154 | S52: 8858.985237 | T52: 8762.573127 | U52: 7226.308914
A53: 12315 | B53: Msh6 | C53: 4079.318829 | D53: 1.44606379 | E53: 0.04980018663 | F53: 29.03731668 | G53: 2.23E-185 | H53: 7.21E-183 | I53: 8261.30832 | J53: 7904.189 | K53: 8415.524182 | L53: 4296.137182 | M53: 2147.643747 | N53: 2194.244106 | O53: 3739.105466 | P53: 3671.83245 | Q53: 2992.010392 | R53: 3064.18419 | S53: 1105.589945 | T53: 1160.056962 | U53: 7219.289671
A54: 3450 | B54: Caprin1 | C54: 7999.420263 | D54: -0.3498192561 | E54: 0.03601228409 | F54: -9.71388694 | G54: 2.63E-22 | H54: 4.33E-21 | I54: 6825.722996 | J54: 8214.550414 | K54: 6919.080949 | L54: 6835.480267 | M54: 7825.549459 | N54: 8077.403079 | O54: 8325.071672 | P54: 8128.105717 | Q54: 8753.665441 | R54: 8652.924073 | S54: 8723.461309 | T54: 8712.027788 | U54: 7198.708656
A55: 4397 | B55: Cltc | C55: 7978.956761 | D55: -0.3115113603 | E55: 0.03601192359 | F55: -8.650228294 | G55: 5.14E-18 | H55: 6.74E-17 | I55: 6938.662401 | J55: 8164.892588 | K55: 6691.464057 | L55: 6991.863948 | M55: 7841.801898 | N55: 7732.767214 | O55: 8893.233891 | P55: 8797.18759 | Q55: 8805.286058 | R55: 8449.148277 | S55: 8244.542162 | T55: 8196.631052 | U55: 7196.720748
A56: 4848 | B56: Ctnnb1 | C56: 9059.907654 | D56: -0.5928392418 | E56: 0.03222754504 | F56: -18.39542047 | G56: 1.43E-75 | H56: 1.17E-73 | I56: 6896.832992 | J56: 7526.025554 | K56: 7119.131781 | L56: 6768.638855 | M56: 9898.896341 | N56: 9927.01132 | O56: 9658.757723 | P56: 9692.714796 | Q56: 10385.67111 | R56: 10415.20734 | S56: 10199.95885 | T56: 10230.04518 | U56: 7077.657295
A57: 1934 | B57: Akap12 | C57: 5179.023411 | D57: 0.270921715 | E57: 0.04497695028 | F57: 6.023567925 | G57: 1.71E-09 | H57: 1.16E-08 | I57: 6577.256305 | J57: 7643.485412 | K57: 6386.662198 | L57: 7271.210605 | M57: 4272.069724 | N57: 4258.313252 | O57: 3204.434915 | P57: 3254.831232 | Q57: 5501.566554 | R57: 5408.863718 | S57: 4301.101528 | T57: 4068.48549 | U57: 6969.65363
A58: 3782 | B58: Cct7 | C58: 6202.783107 | D58: 0.2462708433 | E58: 0.03980788059 | F58: 6.186484678 | G58: 6.15E-10 | H58: 4.37E-09 | I58: 7011.445573 | J58: 6880.473812 | K58: 6882.85127 | L58: 6762.333061 | M58: 5819.53411 | N58: 5692.11083 | O58: 6218.685003 | P58: 6103.769884 | Q58: 5908.575267 | R58: 5913.271706 | S58: 5669.587516 | T58: 5570.759256 | U58: 6884.275929
A59: 17251 | B59: Scd2 | C59: 5898.309954 | D59: 0.4737115282 | E59: 0.04245879852 | F59: 11.15696969 | G59: 6.62E-29 | H59: 1.45E-27 | I59: 6303.691969 | J59: 7207.069516 | K59: 6268.521943 | L59: 7557.493634 | M59: 7073.293703 | N59: 7028.511316 | O59: 3257.064678 | P59: 3400.098049 | Q59: 4562.468402 | R59: 4520.803768 | S59: 6860.771521 | T59: 6739.930952 | U59: 6834.194265
A60: 1618 | B60: Acly | C60: 5521.646847 | D60: 0.4401477274 | E60: 0.04446818647 | F60: 9.898036379 | G60: 4.25E-23 | H60: 7.25E-22 | I60: 6221.706327 | J60: 7900.369167 | K60: 6480.386801 | L60: 6539.738547 | M60: 5414.38402 | N60: 5184.522138 | O60: 4504.629298 | P60: 4376.803772 | Q60: 4602.176569 | R60: 4572.376654 | S60: 5281.357314 | T60: 5181.311562 | U60: 6785.55021
A61: 17006 | B61: Rps5 | C61: 6494.060603 | D61: 0.07632302473 | E61: 0.03949623698 | F61: 1.932412568 | G61: 0.05330860403 | H61: 0.09875519442 | I61: 6453.441254 | J61: 6768.743703 | K61: 7091.565721 | L61: 6453.979754 | M61: 6408.104586 | N61: 6499.382883 | O61: 6492.598999 | P61: 6448.992204 | Q61: 5997.918643 | R61: 6221.45115 | S61: 6584.628779 | T61: 6507.91956 | U61: 6691.932608
A62: 5343 | B62: Ddx5 | C62: 6979.84686 | D62: -0.1615965442 | E62: 0.03761207993 | F62: -4.296400106 | G62: 1.74E-05 | H62: 7.12E-05 | I62: 6362.253142 | J62: 7359.862827 | K62: 6385.086995 | L62: 6420.559048 | M62: 7048.915045 | N62: 6991.050896 | O62: 7204.296937 | P62: 7265.049916 | Q62: 7228.871824 | R62: 7023.975581 | S62: 7264.286377 | T62: 7203.953737 | U62: 6631.940503
A63: 6343 | B63: Esrrb | C63: 2716.819769 | D63: 3.157584562 | E63: 0.1021882985 | F63: 30.89966862 | G63: 1.21E-209 | H63: 4.59E-207 | I63: 6110.440098 | J63: 7806.783264 | K63: 6118.090018 | L63: 6292.551437 | M63: 552.5829317 | N63: 486.0489505 | O63: 1405.45391 | P63: 1462.922307 | Q63: 627.3890404 | R63: 730.8255395 | S63: 520.6971999 | T63: 488.0525364 | U63: 6581.966204
A64: 1527 | B64: Abce1 | C64: 5476.776608 | D64: 0.3120663754 | E64: 0.04473372716 | F64: 6.976087066 | G64: 3.04E-12 | H64: 2.69E-11 | I64: 6606.536892 | J64: 6401.084797 | K64: 6169.284129 | L64: 6346.781262 | M64: 4765.447342 | N64: 4697.536677 | O64: 4791.700735 | P64: 5068.102923 | Q64: 5420.164811 | R64: 5239.050554 | S64: 5112.207147 | T64: 5103.422023 | U64: 6380.92177
A65: 1478 | B65: Aars | C65: 4085.253676 | D65: 1.177193821 | E65: 0.05261995997 | F65: 22.37162137 | G65: 7.44E-111 | H65: 1.10E-108 | I65: 6386.514199 | J65: 5998.092438 | K65: 6129.116442 | L65: 6904.843996 | M65: 3019.47102 | N65: 2908.801619 | O65: 3035.780446 | P65: 2938.662275 | Q65: 2725.965673 | R65: 2903.176154 | S65: 3072.215377 | T65: 3000.404472 | U65: 6354.641769
A66: 20382 | B66: Txnip | C66: 3790.620852 | D66: 1.158328096 | E66: 0.05037166752 | F66: 22.99562737 | G66: 5.16E-117 | H66: 8.35E-115 | I66: 6853.330406 | J66: 6048.705222 | K66: 6115.727213 | L66: 5923.031932 | M66: 2755.949327 | N66: 2742.102749 | O66: 2397.046499 | P66: 2396.902495 | Q66: 3119.076527 | R66: 3031.479432 | S66: 2075.655961 | T66: 2028.44246 | U66: =AVERAGE(I66:L66) -> 6235.198693
A67: 4450 | B67: Cnot1 | C67: 5581.87945 | D67: 0.01808305211 | E67: 0.04155873384 | F67: 0.4351203813 | G67: 0.6634750503 | H67: 0.7545503867 | I67: 6000.010458 | J67: 6986.474172 | K67: 5574.644844 | L67: 6339.21431 | M67: 4736.425129 | N67: 4682.552509 | O67: 5191.208485 | P67: 5331.292217 | Q67: 5964.166701 | R67: 5893.145702 | S67: 5146.852362 | T67: 5136.566507 | U67: 6225.085946
A68: 3780 | B68: Cct6a | C68: 5486.925851 | D68: 0.2685607647 | E68: 0.0454636113 | F68: 5.90715865 | G68: 3.48E-09 | H68: 2.30E-08 | I68: 6439.219255 | J68: 6050.615139 | K68: 6313.41524 | L68: 6035.905638 | M68: 4891.984189 | N68: 4963.50566 | O68: 5164.893603 | P68: 5274.894511 | Q68: 5467.814612 | R68: 5242.82418 | S68: 4865.614735 | T68: 5132.423447 | U68: 6209.788818
A69: 15896 | B69: Prrc2a | C69: 6170.48086 | D69: -0.04099653397 | E69: 0.04012179085 | F69: -1.021802195 | G69: 0.3068745301 | H69: 0.4172791932 | I69: 5971.56646 | J69: 6179.534495 | K69: 5888.897923 | L69: 6704.950339 | M69: 6213.075316 | N69: 6098.556388 | O69: 6132.563572 | P69: 6076.425541 | Q69: 6053.510077 | R69: 6217.677525 | S69: 6281.992637 | T69: 6227.020052 | U69: 6186.237304
A70: 3405 | B70: Calr | C70: 6936.404934 | D70: -0.1613667899 | E70: 0.04127143372 | F70: -3.909890578 | G70: 9.23E-05 | H70: 0.0003359026978 | I70: 6163.981742 | J70: 5841.479293 | K70: 6263.008731 | L70: 6438.21527 | M70: 7873.145888 | N70: 7910.704209 | O70: 6451.930546 | P70: 6473.773014 | Q70: 6629.2785 | R70: 7115.800477 | S70: 8119.208002 | T70: 7956.333538 | U70: 6176.671259
A71: 3779 | B71: Cct5 | C71: 6361.675114 | D71: -0.05175155182 | E71: 0.03967019466 | F71: -1.304544943 | G71: 0.1920478465 | H71: 0.2858002361 | I71: 6185.733035 | J71: 6193.858868 | K71: 6258.283121 | L71: 5824.661552 | M71: 6498.65389 | N71: 6489.081267 | O71: 6733.021328 | P71: 6592.55 | Q71: 6389.044089 | R71: 6430.258447 | S71: 6458.275642 | T71: 6286.680125 | U71: 6115.634144
A72: 4158 | B72: Chd4 | C72: 6409.027333 | D72: -0.2873663507 | E72: 0.03921554308 | F72: -7.327868701 | G72: 2.34E-13 | H72: 2.26E-12 | I72: 5977.422577 | J72: 6688.527214 | K72: 5561.255615 | L72: 5780.520997 | M72: 6127.169566 | N72: 6121.969151 | O72: 6343.082626 | P72: 6533.588762 | Q72: 7324.171425 | R72: 7270.519137 | S72: 6538.774818 | T72: 6641.32611 | U72: 6001.931601
A73: 18797 | B73: Stip1 | C73: 4556.835071 | D73: 0.6855300652 | E73: 0.04981674204 | F73: 13.7610377 | G73: 4.37E-43 | H73: 1.69E-41 | I73: 5961.527401 | J73: 6275.030315 | K73: 5755.005634 | L73: 5992.395662 | M73: 3786.818326 | N73: 3980.169633 | O73: 4014.215593 | P73: 3970.911193 | Q73: 3698.815767 | R73: 3713.247836 | S73: 3863.960435 | T73: 3669.923062 | U73: 5995.989753
A74: 19285 | B74: Tdgf1 | C74: 2394.653472 | D74: 3.280797731 | E74: 0.07365604279 | F74: 44.54213946 | G74: 0 | H74: 0 | I74: 7180.436386 | J74: 4918.989675 | K74: 6018.064602 | L74: 5824.661552 | M74: 564.1918168 | N74: 554.4142171 | O74: 589.6925767 | P74: 591.3213999 | Q74: 718.7178248 | R74: 753.4672946 | S74: 515.6023154 | T74: 506.2820029 | U74: 5985.538054
A75: 9707 | B75: Ipo5 | C75: 6073.453535 | D75: -0.09550457486 | E75: 0.04016774687 | F75: -2.377643316 | G75: 0.0174236707 | H75: 0.03791024192 | I75: 5980.76893 | J75: 6055.38993 | K75: 5883.384711 | L75: 5885.197171 | M75: 5695.31904 | N75: 5740.809376 | O75: 6546.424894 | P75: 6533.588762 | Q75: 6426.766848 | R75: 6359.817432 | S75: 5971.20468 | T75: 5802.770649 | U75: 5951.185185
A76: 5992 | B76: Eef1b2 | C76: 5468.358841 | D76: 0.2551886166 | E76: 0.05051898803 | F76: 5.051340625 | G76: 4.39E-07 | H76: 2.25E-06 | I76: 5999.17387 | J76: 5649.532696 | K76: 6281.12357 | L76: 5745.839132 | M76: 5474.750222 | N76: 5295.966888 | O76: 5547.655519 | P76: 5161.244589 | Q76: 4834.469346 | R76: 5191.251294 | S76: 5178.440646 | T76: 5260.858325 | U76: 5918.917317
A77: 6102 | B77: Eif4a2 | C77: 3573.079652 | D77: 1.449839905 | E77: 0.05338773415 | F77: 27.15679787 | G77: 2.10E-162 | H77: 5.72E-160 | I77: 6714.456767 | J77: 4504.537817 | K77: 6114.939611 | L77: 6314.621715 | M77: 2256.767267 | N77: 2357.196933 | O77: 2670.960495 | P77: 2704.526345 | Q77: 2434.110644 | R77: 2476.756433 | S77: 2148.003322 | T77: 2180.078477 | U77: 5912.138978
A78: 15731 | B78: Prdx1 | C78: 4632.275473 | D78: 0.4975485177 | E78: 0.04676079982 | F78: 10.64029101 | G78: 1.94E-26 | H78: 3.85E-25 | I78: 5719.753416 | J78: 6084.038675 | K78: 6169.284129 | L78: 5563.601697 | M78: 4042.213799 | N78: 3989.534738 | O78: 4173.301015 | P78: 4199.920059 | Q78: 4109.795297 | R78: 4003.817026 | S78: 3698.886176 | T78: 3833.159649 | U78: 5884.169479
A79: 2626 | B79: Atp1a1 | C79: 5215.64802 | D79: 0.3243828552 | E79: 0.04658607476 | F79: 6.963086219 | G79: 3.33E-12 | H79: 2.94E-11 | I79: 5965.710342 | J79: 6075.444052 | K79: 5634.502573 | L79: 5696.653942 | M79: 4965.120166 | N79: 4862.362526 | O79: 5182.835568 | P79: 5232.168976 | Q79: 4570.410035 | R79: 4925.839609 | S79: 4771.86886 | T79: 4704.859595 | U79: 5843.077727
A80: 20409 | B80: Uba1 | C80: 5297.218056 | D80: 0.1493759323 | E80: 0.04304220398 | F80: 3.470452684 | G80: 0.0005195818775 | H80: 0.001645540775 | I80: 5610.160364 | J80: 6291.264604 | K80: 5597.485293 | L80: 5713.679585 | M80: 4820.009102 | N80: 4811.790959 | O80: 5340.724858 | P80: 5293.693746 | Q80: 4969.477115 | R80: 5130.87328 | S80: 5017.442295 | T80: 4970.015472 | U80: 5803.147462
A81: 20488 | B81: Ubr5 | C81: 4280.406998 | D81: 0.4802844669 | E81: 0.04791121823 | F81: 10.02446785 | G81: 1.19E-23 | H81: 2.08E-22 | I81: 5416.071905 | J81: 6901.482892 | K81: 5312.373477 | L81: 5425.504817 | M81: 3244.683391 | N81: 3152.294349 | O81: 3624.276892 | P81: 3548.78291 | Q81: 3917.210686 | R81: 3854.129868 | S81: 3478.787164 | T81: 3489.285621 | U81: 5763.858273
A82: 19335 | B82: Tet1 | C82: 2462.464228 | D82: 2.51624153 | E82: 0.06990223234 | F82: 35.99658331 | G82: 9.46E-284 | H82: 6.55E-281 | I82: 5491.364842 | J82: 6696.16688 | K82: 5225.73729 | L82: 5520.7223 | M82: 655.9020092 | N82: 657.4303723 | O82: 988.0041955 | P82: 986.959851 | Q82: 954.9814192 | R82: 963.5324669 | S82: 683.7335052 | T82: 725.0356016 | U82: 5733.497828
A83: 19491 | B83: Tkt | C83: 4683.490917 | D83: 0.4935804425 | E83: 0.04740166641 | F83: 10.41272343 | G83: 2.17E-25 | H83: 4.15E-24 | I83: 5435.313434 | J83: 6302.724103 | K83: 5574.644844 | L83: 5494.237967 | M83: 4508.89098 | N83: 4488.694835 | O83: 4011.823331 | P83: 4158.049035 | Q83: 3849.706802 | R83: 3869.224371 | S83: 4326.575951 | T83: 4182.00535 | U83: 5701.730087
A84: 626 | B84: 2610507B11Rik | C84: 4501.587571 | D84: 0.4666204458 | E84: 0.04914022752 | F84: 9.495691604 | G84: 2.19E-21 | H84: 3.44E-20 | I84: 5772.458472 | J84: 5907.371409 | K84: 5205.259646 | L84: 5914.834401 | M84: 3459.447766 | N84: 3659.883041 | O84: 4097.944763 | P84: 3947.839404 | Q84: 4215.021939 | R84: 4145.956933 | S84: 3873.131227 | T84: 3819.901855 | U84: 5699.980982
A85: 19265 | B85: Tcp1 | C85: 5811.807721 | D85: -0.03041124058 | E85: 0.04004898984 | F85: -0.7593510024 | G85: 0.4476426155 | H85: 0.5611289566 | I85: 5989.134812 | J85: 5554.036876 | K85: 5562.830818 | L85: 5525.766935 | M85: 5829.982107 | N85: 5786.698391 | O85: 6050.030534 | P85: 6086.67967 | Q85: 6107.116103 | R85: 6124.594754 | S85: 5552.405171 | T85: 5572.416481 | U85: 5657.94236
A86: 3783 | B86: Cct8 | C86: 5636.349769 | D86: 0.05042030459 | E86: 0.04362487313 | F86: 1.155769655 | G86: 0.247775388 | H86: 0.3516811959 | I86: 5905.475993 | J86: 5599.874869 | K86: 5690.422294 | L86: 5257.770707 | M86: 5701.123482 | N86: 5464.538778 | O86: 5807.215943 | P86: 5834.599015 | Q86: 5588.924522 | R86: 5797.54718 | S86: 5440.317711 | T86: 5548.386729 | U86: 5613.385966
A87: 4844 | B87: Ctnna1 | C87: 5628.618276 | D87: 0.08647919156 | E87: 0.04186216616 | F87: 2.065807852 | G87: 0.0388466264 | H87: 0.07538572854 | I87: 5938.939521 | J87: 5448.991474 | K87: 5222.586883 | L87: 5703.590315 | M87: 5982.058502 | N87: 6031.127632 | O87: 4840.742106 | P87: 4795.514012 | Q87: 5680.253306 | R87: 5522.072493 | S87: 6252.442307 | T87: 6125.100762 | U87: 5578.527048
A88: 17527 | B88: Sf3b3 | C88: 5344.163096 | D88: -0.04026757333 | E88: 0.04235695224 | F88: -0.9506721142 | G88: 0.3417708483 | H88: 0.4550273812 | I88: 5599.284718 | J88: 5901.64166 | K88: 5538.415166 | L88: 5107.692819 | M88: 5105.587676 | N88: 5025.315353 | O88: 5020.161754 | P88: 5120.228075 | Q88: 5727.903107 | R88: 5782.452677 | S88: 5128.510778 | T88: 5072.763375 | U88: 5536.758591
A89: 17535 | B89: Sfpq | C89: 6172.61078 | D89: -0.197928397 | E89: 0.04014982432 | F89: -4.929745032 | G89: 8.23E-07 | H89: 4.07E-06 | I89: 5401.013318 | J89: 6268.345608 | K89: 5113.897848 | L89: 5269.751715 | M89: 6369.795265 | N89: 6242.779005 | O89: 6990.18949 | P89: 7020.659858 | Q89: 6259.992546 | R89: 6142.205008 | S89: 6471.522342 | T89: 6521.177353 | U89: 5513.252122
A90: 15090 | B90: Phc1 | C90: 2952.264852 | D90: 1.439673187 | E90: 0.06020131479 | F90: 23.9143147 | G90: 2.17E-126 | H90: 3.94E-124 | I90: 5093.148866 | J90: 6832.725902 | K90: 5298.196647 | L90: 4767.179965 | M90: 1562.555937 | N90: 1552.734412 | O90: 1877.92565 | P90: 1843.179566 | Q90: 1945.700189 | R90: 1823.919161 | S90: 1433.700509 | T90: 1396.211416 | U90: 5497.812845
A91: 18438 | B91: Sox2 | C91: 2801.248823 | D91: 1.825882689 | E91: 0.06845765925 | F91: 26.67170787 | G91: 1.00E-156 | H91: 2.54E-154 | I91: 5150.036863 | J91: 6435.463292 | K91: 5247.002536 | L91: 5112.106875 | M91: 929.8716981 | N91: 1022.669468 | O91: 2450.872393 | P91: 2409.720156 | Q91: 1536.706067 | R91: 1386.178562 | S91: 995.540439 | T91: 938.8175275 | U91: 5486.152391
A92: 9180 | B92: Hnrnph1 | C92: 6043.883606 | D92: -0.2747711616 | E92: 0.04196109619 | F92: -6.548236021 | G92: 5.82E-11 | H92: 4.54E-10 | I92: 5046.299928 | J92: 5924.560657 | K92: 5483.283047 | L92: 5447.575094 | M92: 6541.606765 | N92: 6515.303561 | O92: 6149.309406 | P92: 5974.738769 | Q92: 6126.970186 | R92: 6086.858495 | S92: 6509.224488 | T92: 6720.872873 | U92: 5475.429681
A93: 4425 | B93: Cnbp | C93: 5388.63113 | D93: 0.1468293762 | E93: 0.04775280028 | F93: 3.07478044 | G93: 0.002106575702 | H93: 0.005841622675 | I93: 5790.863412 | J93: 5373.549777 | K93: 5433.664139 | L93: 5242.636802 | M93: 5093.97879 | N93: 5431.760911 | O93: 5676.837666 | P93: 5589.354446 | Q93: 5305.011127 | R93: 5167.351663 | S93: 5395.482727 | T93: 5163.082095 | U93: 5460.178533
A94: 6744 | B94: Fasn | C94: 4266.743696 | D94: 0.290797783 | E94: 0.04780008424 | F94: 6.083624905 | G94: 1.17E-09 | H94: 8.11E-09 | I94: 4805.362531 | J94: 6150.885749 | K94: 5221.01168 | L94: 5440.638722 | M94: 3493.113532 | N94: 3448.231668 | O94: 3639.826594 | P94: 3578.690784 | Q94: 3972.80212 | R94: 3891.866126 | S94: 3778.366375 | T94: 3780.128473 | U94: 5404.47467
A95: 8950 | B95: Hdgf | C95: 5657.559337 | D95: -0.05174790972 | E95: 0.04375351545 | F95: -1.18271433 | G95: 0.2369223828 | H95: 0.3394735394 | I95: 5477.979431 | J95: 5151.999475 | K95: 5569.919234 | L95: 5373.16673 | M95: 6572.950755 | N95: 6492.827309 | O95: 4564.435848 | P95: 4447.72816 | Q95: 5696.136573 | R95: 5662.954525 | S95: 6585.647756 | T95: 6294.966246 | U95: 5393.266217
A96: 18668 | B96: Srrm2 | C96: 5064.949473 | D96: -0.2501785883 | E96: 0.04433078063 | F96: -5.643451001 | G96: 1.67E-08 | H96: 1.02E-07 | I96: 4511.720078 | J96: 6306.543935 | K96: 4520.833767 | L96: 5914.203821 | M96: 4779.378004 | N96: 4852.997421 | O96: 4380.231676 | P96: 4347.750408 | Q96: 5370.529603 | R96: 5362.322332 | S96: 5152.966223 | T96: 5279.916404 | U96: 5313.3254
A97: 16022 | B97: Psme4 | C97: 4685.684358 | D97: -0.001312187095 | E97: 0.04546368029 | F97: -0.02886231574 | G97: 0.9769744008 | H97: 0.9844105022 | I97: 5105.697689 | J97: 6542.41861 | K97: 4742.149845 | L97: 4630.974823 | M97: 4157.141761 | N97: 4094.423914 | O97: 4374.251021 | P97: 4331.514705 | Q97: 5171.988767 | R97: 5059.174389 | S97: 3960.763241 | T97: 4057.713532 | U97: 5255.310242
A98: 6976 | B98: Fkbp4 | C98: 4751.685303 | D98: 0.2439805085 | E98: 0.04806813252 | F98: 5.07572264 | G98: 3.86E-07 | H98: 1.99E-06 | I98: 5140.834393 | J98: 5171.098639 | K98: 5491.159064 | L98: 5209.216096 | M98: 4301.091937 | N98: 4357.583365 | O98: 5320.390632 | P98: 5113.39199 | Q98: 4226.93439 | R98: 4435.268248 | S98: 4082.021493 | T98: 4171.233392 | U98: 5253.077048
A99: 21407 | B99: Ybx1 | C99: 4994.583549 | D99: 0.2762906432 | E99: 0.04532541439 | F99: 6.095711356 | G99: 1.09E-09 | H99: 7.55E-09 | I99: 5466.267196 | J99: 4993.476414 | K99: 5211.560459 | L99: 5315.153429 | M99: 5141.575219 | N99: 5002.839101 | O99: 4820.407879 | P99: 4992.051471 | Q99: 4510.847784 | R99: 4515.772266 | S99: 4981.778103 | T99: 4983.273266 | U99: 5246.614375
A100: 6090 | B100: Eif3c | C100: 4879.70458 | D100: 0.09938665019 | E100: 0.04616317602 | F100: 2.15294221 | G100: 0.03132322064 | H100: 0.06270410401 | I100: 5178.480861 | J100: 5066.053237 | K100: 5287.957825 | L100: 5303.803 | M100: 4656.323821 | N100: 4480.266241 | O100: 4474.726024 | P100: 4474.217991 | Q100: 4810.644446 | R100: 4852.882842 | S100: 5067.372163 | T100: 4903.726503 | U100: 5209.073731
A101: 15557 | B101: Pou5f1 | C101: 2466.140435 | D101: 2.019436035 | E101: 0.067492139 | F101: 29.92105547 | G101: 1.05E-196 | H101: 3.71E-194 | I101: 5140.834393 | J101: 5307.657661 | K101: 5209.197654 | L101: 4887.620622 | M101: 1007.651228 | N101: 1015.177384 | O101: 1397.080993 | P101: 1427.032858 | Q101: 1274.632164 | R101: 1262.906784 | S101: 865.1113948 | T101: 798.7820799 | U101: 5136.327583
A102: 18672 | B102: Srsf1 | C102: 5481.932195 | D102: -0.1552719045 | E102: 0.04352015671 | F102: -3.567815841 | G102: 0.0003599693504 | H102: 0.001180308721 | I102: 5088.965925 | J102: 5727.839268 | K102: 4928.023847 | L102: 4758.982433 | M102: 5165.953878 | N102: 5339.982882 | O102: 6254.568933 | P102: 6253.309255 | Q102: 5723.93229 | R102: 5620.186765 | S102: 5386.311935 | T102: 5535.128935 | U102: 5125.952868
A103: 16493 | B103: Rcc2 | C103: 4198.789678 | D103: 0.3527675877 | E103: 0.04933501288 | F103: 7.150450909 | G103: 8.65E-13 | H103: 8.03E-12 | I103: 4575.30078 | J103: 5552.12696 | K103: 5143.826713 | L103: 5217.413628 | M103: 3523.296634 | N103: 3389.231506 | O103: 4258.226315 | P103: 4287.93466 | Q103: 3567.778815 | R103: 3595.007559 | S103: 3664.240961 | T103: 3611.091602 | U103: 5122.16702
A104: 9184 | B104: Hnrnpl | C104: 4671.368302 | D104: 0.1950231429 | E104: 0.04782244615 | F104: 4.078067072 | G104: 4.54E-05 | H104: 0.0001736180875 | I104: 5015.346165 | J104: 5182.558137 | K104: 5206.047248 | L104: 5016.889391 | M104: 4384.67591 | N104: 4386.615191 | O104: 4914.902227 | P104: 4826.276397 | Q104: 4228.919798 | R104: 4506.96714 | S104: 4173.729415 | T104: 4213.49261 | U104: 5105.210235
A105: 9898 | B105: Kars | C105: 4688.245089 | D105: 0.1960971133 | E105: 0.04562559393 | F105: 4.297962973 | G105: 1.72E-05 | H105: 7.07E-05 | I105: 5194.376036 | J105: 4905.62026 | K105: 5205.259646 | L105: 5083.100224 | M105: 4549.522078 | N105: 4469.964625 | O105: 4221.146254 | P105: 4202.483591 | Q105: 4455.25635 | R105: 4598.792035 | S105: 4680.160938 | T105: 4693.259025 | U105: 5097.089042
A106: 18932 | B106: Suz12 | C106: 3969.483351 | D106: 0.5156672127 | E106: 0.05117621282 | F106: 10.07630663 | G106: 7.03E-24 | H106: 1.25E-22 | I106: 5430.293904 | J106: 4494.988235 | K106: 5183.9944 | L106: 5244.52854 | M106: 2911.508388 | N106: 3025.865432 | O106: 3814.461719 | P106: 3659.01479 | Q106: 3867.575477 | R106: 3740.921092 | S106: 3151.695576 | T106: 3108.952659 | U106: 5088.45127
A107: 7200 | B107: G3bp1 | C107: 4461.144233 | D107: 0.2008521194 | E107: 0.04689060861 | F107: 4.283418906 | G107: 1.84E-05 | H107: 7.50E-05 | I107: 4989.411931 | J107: 4950.503295 | K107: 5035.137678 | L107: 5115.259772 | M107: 3969.077822 | N107: 4026.995158 | O107: 4522.571263 | P107: 4660.501322 | Q107: 4310.321541 | R107: 4366.085108 | S107: 3793.651028 | T107: 3794.214879 | U107: 5022.578169
A108: 17088 | B108: Rtn4 | C108: 6304.066848 | D108: -0.6522499788 | E108: 0.04086799571 | F108: -15.9599209 | G108: 2.43E-57 | H108: 1.40E-55 | I108: 5045.46334 | J108: 5096.611899 | K108: 5013.084831 | L108: 4912.213218 | M108: 7033.823494 | N108: 7014.463659 | O108: 5843.099873 | P108: 5803.83663 | Q108: 8062.743333 | R108: 7816.437009 | S108: 6880.132082 | T108: 7126.89281 | U108: 5016.843322
A109: 5324 | B109: Ddx21 | C109: 4127.855608 | D109: 0.3794311117 | E109: 0.04841470835 | F109: 7.837104148 | G109: 4.61E-15 | H109: 4.98E-14 | I109: 5372.56932 | J109: 4635.36709 | K109: 4956.377508 | L109: 4972.748836 | M109: 3469.895762 | N109: 3538.136676 | O109: 3603.942665 | P109: 3589.799423 | Q109: 4187.226222 | R109: 4083.063169 | S109: 3614.311092 | T109: 3510.829536 | U109: 4984.265689
A110: 11164 | B110: Matr3 | C110: 5345.628231 | D110: -0.1303760555 | E110: 0.04305701756 | F110: -3.027986212 | G110: 0.002461893199 | H110: 0.006716821158 | I110: 5210.271212 | J110: 5081.332568 | K110: 4958.740313 | L110: 4608.273966 | M110: 4974.407274 | N110: 5031.870926 | O110: 6298.825779 | P110: 6175.548782 | Q110: 5789.450766 | R110: 5631.507643 | S110: 5228.370515 | T110: 5158.939035 | U110: 4964.654515
A111: 10052 | B111: Kdm5b | C111: 3852.142602 | D111: 0.469078166 | E111: 0.04962276212 | F111: 9.45288303 | G111: 3.30E-21 | H111: 5.15E-20 | I111: 4949.255698 | J111: 5629.478574 | K111: 4932.749457 | L111: 4250.735468 | M111: 3135.559871 | N111: 3099.849761 | O111: 3411.365576 | P111: 3470.167926 | Q111: 3563.807999 | R111: 3584.944557 | S111: 3081.38617 | T111: 3116.410169 | U111: 4940.554799
A112: 21579 | B112: Zfp106 | C112: 4156.209123 | D112: 0.3317348858 | E112: 0.04817767075 | F112: 6.885656377 | G112: 5.75E-12 | H112: 4.95E-11 | I112: 5149.200275 | J112: 4884.61118 | K112: 4588.567514 | L112: 5093.820073 | M112: 3295.762485 | N112: 3347.088534 | O112: 4035.745951 | P112: 4144.376863 | Q112: 4107.809888 | R112: 4078.031668 | S112: 3607.178254 | T112: 3542.316796 | U112: 4929.04976
A113: 10493 | B113: Lamp1 | C113: 4905.107138 | D113: 0.1336141069 | E113: 0.04593447861 | F113: 2.908797726 | G113: 0.003628215241 | H113: 0.00952015664 | I113: 5072.234162 | J113: 5587.460413 | K113: 4671.265692 | L113: 4365.500912 | M113: 4693.472254 | N113: 4567.361718 | O113: 5913.671601 | P113: 5789.309948 | Q113: 4620.045244 | R113: 4626.465291 | S113: 4407.075127 | T113: 4547.423293 | U113: 4924.115295
A114: 17525 | B114: Sf3b1 | C114: 4807.555912 | D114: 0.004350325403 | E114: 0.04466497137 | F114: 0.09739904156 | G114: 0.9224095058 | H114: 0.9469038582 | I114: 5112.390394 | J114: 4876.971514 | K114: 5037.500483 | L114: 4540.171395 | M114: 4677.219815 | N114: 4605.758648 | O114: 4961.551335 | P114: 4883.528613 | Q114: 5158.090908 | R114: 5046.595636 | S114: 4391.790473 | T114: 4399.101724 | U114: 4891.758447
A115: 17893 | B115: Slc2a1 | C115: 7351.310228 | D115: -0.8136398451 | E115: 0.0369309021 | F115: -22.03140998 | G115: 1.44E-107 | H115: 2.03E-105 | I115: 5344.125321 | J115: 5880.632579 | K115: 4958.740313 | L115: 3380.535951 | M115: 9503.033359 | N115: 9398.819397 | O115: 8301.149052 | P115: 8326.352197 | Q115: 9238.10508 | R115: 9523.373769 | S115: 7168.502547 | T115: 7192.353167 | U115: 4891.008541
A116: 2635 | B116: Atp2a2 | C116: 3993.855925 | D116: 0.4368019532 | E116: 0.04990311294 | F116: 8.753000114 | G116: 2.08E-18 | H116: 2.78E-17 | I116: 4991.085108 | J116: 4926.62934 | K116: 4493.267708 | L116: 5133.546573 | M116: 3431.586441 | N116: 3407.025206 | O116: 3363.520336 | P116: 3518.875036 | Q116: 3690.874133 | R116: 3684.316704 | S116: 3647.93733 | T116: 3637.60719 | U116: 4886.132182
A117: 4763 | B117: Csde1 | C117: 4492.495973 | D117: 0.1796313269 | E117: 0.0467635882 | F117: 3.841264834 | G117: 0.0001224019669 | H117: 0.0004342688288 | I117: 5147.527098 | J117: 4638.231965 | K117: 4685.442523 | L117: 4958.245511 | M117: 4111.867109 | N117: 4244.265594 | O117: 4187.654587 | P117: 4193.083973 | Q117: 4481.066659 | R117: 4597.53416 | S117: 4361.221166 | T117: 4303.811331 | U117: 4857.361774
A118: 18676 | B118: Srsf2 | C118: 4670.137873 | D118: 0.05323031834 | E118: 0.04639860273 | F118: 1.147239684 | G118: 0.2512825745 | H118: 0.3556160599 | I118: 4687.403597 | J118: 5448.991474 | K118: 4713.796184 | L118: 4535.12676 | M118: 4504.247426 | N118: 4498.996451 | O118: 4905.333179 | P118: 4949.325937 | Q118: 4618.059836 | R118: 4435.268248 | S118: 4341.860605 | T118: 4403.244785 | U118: 4846.329504
A119: 3777 | B119: Cct3 | C119: 4883.807199 | D119: -0.008189904927 | E119: 0.0459092884 | F119: -0.1783932013 | G119: 0.8584141882 | H119: 0.9026452274 | I119: 4790.303943 | J119: 4838.773186 | K119: 4869.741321 | L119: 4773.485758 | M119: 4919.845514 | N119: 4826.775127 | O119: 5168.481996 | P119: 5019.395814 | Q119: 4905.944047 | R119: 4744.705568 | S119: 4876.823481 | T119: 4871.41063 | U119: 4818.076052
A120: 2976 | B120: Baz2a | C120: 3094.482128 | D120: 0.8729986196 | E120: 0.0600339104 | F120: 14.54175838 | G120: 6.59E-48 | H120: 2.95E-46 | I120: 4548.529958 | J120: 4874.106639 | K120: 4558.638649 | L120: 5226.241739 | M120: 2075.668659 | N120: 1938.576739 | O120: 2325.278639 | P120: 2446.464115 | Q120: 2438.081461 | R120: 2520.782067 | S120: 2072.599031 | T120: 2108.817835 | U120: 4801.879246
A121: 3746 | B121: Ccng1 | C121: 6387.104517 | D121: -0.6222411066 | E121: 0.03993072925 | F121: -15.58301384 | G121: 9.50E-55 | H121: 5.13E-53 | I121: 5129.122158 | J121: 4536.051438 | K121: 4688.59293 | L121: 4823.301528 | M121: 7189.382554 | N121: 7334.750251 | O121: 7130.136815 | P121: 7128.328205 | Q121: 7949.575057 | R121: 7849.141767 | S121: 6344.150229 | T121: 6542.721268 | U121: 4794.267013
A122: 4126 | B122: Cfl1 | C122: 4462.583313 | D122: 0.1964662166 | E122: 0.04716436843 | F122: 4.165564453 | G122: 3.11E-05 | H122: 0.000122210339 | I122: 4528.451842 | J122: 5314.342368 | K122: 4744.51265 | L122: 4524.406911 | M122: 4763.125565 | N122: 4651.647663 | O122: 3894.602495 | P122: 3887.169145 | Q122: 3939.050178 | R122: 3962.307142 | S122: 4650.610608 | T122: 4690.773189 | U122: 4777.928443
A123: 5509 | B123: Dhx9 | C123: 4963.714894 | D123: -0.2033674102 | E123: 0.04525738194 | F123: -4.493574339 | G123: 7.00E-06 | H123: 3.03E-05 | I123: 4534.307959 | J123: 5500.559217 | K123: 4490.117301 | L123: 4570.439204 | M123: 4647.036713 | N123: 4593.584012 | O123: 5309.625453 | P123: 5314.202003 | Q123: 5310.967352 | R123: 5145.967783 | S123: 5006.233549 | T123: 5141.53818 | U123: 4773.85592
A124: 3925 | B124: Cdh1 | C124: 3557.274695 | D124: 0.4536493605 | E124: 0.05364026183 | F124: 8.457254774 | G124: 2.74E-17 | H124: 3.42E-16 | I124: 5436.98661 | J124: 3340.443774 | K124: 4933.537059 | L124: 5230.025215 | M124: 3022.953685 | N124: 2997.770116 | O124: 2364.750962 | P124: 2402.029559 | Q124: 3927.137728 | R124: 4006.332777 | S124: 2602.467023 | T124: 2422.861827 | U124: 4735.248165
A125: 20674 | B125: Usp7 | C125: 3581.839809 | D125: 0.5188983328 | E125: 0.0538690744 | F125: 9.632583047 | G125: 5.82E-22 | H125: 9.40E-21 | I125: 4576.973956 | J125: 5624.703783 | K125: 4180.589832 | L125: 4509.273006 | M125: 2697.904902 | N125: 2646.578678 | O125: 3261.849202 | P125: 3353.099961 | Q125: 3297.763279 | R125: 3109.4677 | S125: 2877.590788 | T125: 2846.282619 | U125: 4722.885144
A126: 14627 | B126: P4hb | C126: 6781.3564 | D126: -0.661431906 | E126: 0.03963310865 | F126: -16.68887273 | G126: 1.58E-62 | H126: 1.01E-60 | I126: 4831.296764 | J126: 4511.222524 | K126: 4849.263677 | L126: 4656.828577 | M126: 8736.846941 | N126: 8559.705987 | O126: 7093.056755 | P126: 6962.553131 | Q126: 7695.442787 | R126: 7596.308835 | S126: 8041.765757 | T126: 7841.985066 | U126: 4712.152886
A127: 9333 | B127: Hspa5 | C127: 6581.484893 | D127: -0.5540940912 | E127: 0.03915109032 | F127: -14.15271163 | G127: 1.80E-45 | H127: 7.45E-44 | I127: 4892.367702 | J127: 4628.682383 | K127: 4626.372395 | L127: 4670.070743 | M127: 8134.345803 | N127: 8231.927311 | O127: 6553.60168 | P127: 6406.266669 | Q127: 7167.324165 | R127: 7196.304495 | S127: 8246.580116 | T127: 8223.975252 | U127: 4704.373306
A128: 7297 | B128: Gart | C128: 3295.307081 | D128: 0.697051573 | E128: 0.05386984737 | F128: 12.93954981 | G128: 2.69E-38 | H128: 8.66E-37 | I128: 4635.535129 | J128: 4406.177123 | K128: 4987.093975 | L128: 4760.243592 | M128: 2421.613436 | N128: 2382.482717 | O128: 2813.300082 | P128: 2772.03269 | Q128: 2890.754566 | R128: 2833.993013 | S128: 2312.058604 | T128: 2328.400046 | U128: 4697.262455
A129: 10507 | B129: Larp1 | C129: 4912.022972 | D129: -0.2463202685 | E129: 0.04425593085 | F129: -5.565813751 | G129: 2.61E-08 | H129: 1.58E-07 | I129: 4429.734436 | J129: 5415.567937 | K129: 4513.745352 | L129: 4409.641467 | M129: 4787.504223 | N129: 4838.013253 | O129: 4963.943597 | P129: 4978.3793 | Q129: 5219.638567 | R129: 5283.076189 | S129: 5048.011602 | T129: 5057.019744 | U129: 4692.172298
A130: 8862 | B130: H3f3b | C130: 7165.08128 | D130: -0.9921390183 | E130: 0.04063596514 | F130: -24.41529357 | G130: 1.18E-131 | H130: 2.36E-129 | I130: 4579.483721 | J130: 5202.612259 | K130: 4568.877471 | L130: 4415.316682 | M130: 8262.04354 | N130: 8555.959945 | O130: 7857.384456 | P130: 7831.590506 | Q130: 9269.871613 | R130: 8971.166519 | S130: 8092.714603 | T130: 8373.954045 | U130: =AVERAGE(I130:L130) -> 4691.572533
A131: 14658 | B131: Paics | C131: 4390.072223 | D131: 0.1265848118 | E131: 0.0466611183 | F131: 2.712854222 | G131: 0.006670644488 | H131: 0.01641791245 | I131: 4604.581367 | J131: 5314.342368 | K131: 4447.586809 | L131: 4383.157134 | M131: 3942.377387 | N131: 3977.360101 | O131: 4687.637339 | P131: 4709.208432 | Q131: 4193.182448 | R131: 4237.781829 | S131: 4082.021493 | T131: 4101.629974 | U131: 4687.416919
A132: 18341 | B132: Snrnp200 | C132: 3768.871934 | D132: 0.2030034645 | E132: 0.05103450169 | F132: 3.977769114 | G132: 6.96E-05 | H132: 0.0002581802989 | I132: 4278.311975 | J132: 5230.306047 | K132: 4400.330707 | L132: 4818.887472 | M132: 2921.956385 | N132: 2957.500165 | O132: 3467.583732 | P132: 3345.409365 | Q132: 3708.742809 | R132: 3723.310838 | S132: 3204.682375 | T132: 3169.441344 | U132: 4681.95905
A133: 6269 | B133: Eprs | C133: 4070.494899 | D133: 0.3469479595 | E133: 0.0502500454 | F133: 6.904430766 | G133: 5.04E-12 | H133: 4.37E-11 | I133: 5017.019341 | J133: 4300.176763 | K133: 4529.497386 | L133: 4839.066012 | M133: 3671.890363 | N133: 3678.613251 | O133: 3664.945345 | P133: 3612.016701 | Q133: 3825.881902 | R133: 4042.81116 | S133: 3886.377927 | T133: 3777.642637 | U133: 4671.439875
A134: 1688 | B134: Actr2 | C134: 4467.950406 | D134: 0.1793392193 | E134: 0.04866144934 | F134: 3.685447552 | G134: 0.0002283010958 | H134: 0.0007751239701 | I134: 5210.271212 | J134: 4503.582859 | K134: 4687.017726 | L134: 4211.639548 | M134: 4413.698122 | N134: 4440.9328 | O134: 3905.367674 | P134: 4012.782217 | Q134: 4709.38862 | R134: 4510.740765 | S134: 4597.623809 | T134: 4412.359518 | U134: 4653.127836
A135: 7213 | B135: Gab1 | C135: 2953.514888 | D135: 0.9449414853 | E135: 0.05859294787 | F135: 16.12722212 | G135: 1.64E-58 | H135: 9.62E-57 | I135: 4708.318301 | J135: 5058.413571 | K135: 4553.125437 | L135: 4199.027961 | M135: 1925.914041 | N135: 1914.227466 | O135: 2141.074467 | P135: 2238.818017 | Q135: 2440.066869 | R135: 2450.341052 | S135: 1949.302825 | T135: 1863.548649 | U135: 4629.721318
A136: 6990 | B136: Flna | C136: 8104.143272 | D136: -1.358578988 | E136: 0.03691496845 | F136: -36.80292968 | G136: 1.66E-296 | H136: 1.40E-293 | I136: 4094.262574 | J136: 5847.209043 | K136: 4531.072589 | L136: 3956.885487 | M136: 10125.2696 | N136: 10164.88499 | O136: 5925.632911 | P136: 5965.339151 | Q136: 10617.96389 | R136: 10398.85497 | S136: 12937.9498 | T136: 12684.39427 | U136: 4607.357423
A137: 14770 | B137: Pcbp2 | C137: 4148.285674 | D137: 0.1836834643 | E137: 0.05254055745 | F137: 3.49603189 | G137: 0.0004722322594 | H137: 0.001514166789 | I137: 4311.775502 | J137: 4802.484775 | K137: 4395.605097 | L137: 4815.734575 | M137: 3995.778258 | N137: 4059.773026 | O137: 4108.709941 | P137: 3995.692003 | Q137: 3651.165966 | R137: 3917.023632 | S137: 3928.15598 | T137: 3797.529328 | U137: 4581.399987
A138: 11217 | B138: Mcm5 | C138: 4190.280785 | D138: 0.197644182 | E138: 0.04916342545 | F138: 4.020146688 | G138: 5.82E-05 | H138: 0.0002186853543 | I138: 4485.785844 | J138: 4910.395051 | K138: 4633.46081 | L138: 4294.245444 | M138: 3689.303691 | N138: 3852.804205 | O138: 4587.162336 | P138: 4538.306293 | Q138: 3923.166911 | R138: 3901.929128 | S138: 3735.569344 | T138: 3731.240359 | U138: 4580.971788
A139: 2008 | B139: Alg13 | C139: 2628.664582 | D139: 1.18201051 | E139: 0.06219417493 | F139: 19.00516425 | G139: 1.55E-80 | H139: 1.42E-78 | I139: 3886.788704 | J139: 6253.066276 | K139: 4104.192467 | L139: 3977.064026 | M139: 1300.195133 | N139: 1276.463814 | O139: 2365.947093 | P139: 2378.957771 | Q139: 1727.30527 | R139: 1701.905258 | S139: 1277.797043 | T139: 1294.292125 | U139: 4555.277868
A140: 16039 | B140: Ptbp1 | C140: 4581.017248 | D140: -0.03272427677 | E140: 0.04853836167 | F140: -0.674194094 | G140: 0.500187924 | H140: 0.6117336885 | I140: 4358.62444 | J140: 4926.62934 | K140: 4552.337835 | L140: 4383.157134 | M140: 4539.074082 | N140: 4476.520199 | O140: 4984.277824 | P140: 4733.134731 | Q140: 4498.935334 | R140: 4425.205246 | S140: 4521.20054 | T140: 4573.110269 | U140: 4555.187187
A141: 2542 | B141: Ash2l | C141: 3392.821449 | D141: 0.7821271449 | E141: 0.05849486145 | F141: 13.37086926 | G141: 8.95E-41 | H141: 3.14E-39 | I141: 4854.721234 | J141: 4487.348569 | K141: 4427.896766 | L141: 4438.648118 | M141: 2372.856118 | N141: 2570.721328 | O141: 3535.763199 | P141: 3408.643156 | Q141: 2759.717615 | R141: 2875.502897 | S141: 2463.886163 | T141: 2518.152221 | U141: 4552.153672
A142: 16208 | B142: Rab1 | C142: 4012.20693 | D142: 0.325575885 | E142: 0.04922837324 | F142: 6.613582039 | G142: 3.75E-11 | H142: 2.99E-10 | I142: 4694.096302 | J142: 4866.466974 | K142: 4453.887623 | L142: 3977.694605 | M142: 3822.80587 | N142: 3879.963009 | O142: 3739.105466 | P142: 3752.156455 | Q142: 3673.005458 | R142: 3805.072732 | S142: 3742.702183 | T142: 3739.52648 | U142: 4498.036376
A143: 16982 | B143: Rps15 | C143: 4373.074135 | D143: 0.172500367 | E143: 0.05612893791 | F143: 3.073287566 | G143: 0.002117143646 | H143: 0.005865657089 | I143: 4634.698541 | J143: 4390.897792 | K143: 4772.866312 | L143: 4186.416374 | M143: 4578.544291 | N143: 4178.709859 | O143: 4582.377812 | P143: 4459.691309 | Q143: 3986.699979 | R143: 4220.171575 | S143: 4186.976115 | T143: 4298.839658 | U143: 4496.219755
A144: 10859 | B144: Lrrc59 | C144: 4397.146006 | D144: 0.1232860066 | E144: 0.04783323 | F144: 2.577413372 | G144: 0.009954282899 | H144: 0.02338642019 | I144: 4571.117839 | J144: 4222.825149 | K144: 4533.435394 | L144: 4612.688021 | M144: 4713.207359 | N144: 4759.34637 | O144: 3709.202192 | P144: 3654.742236 | Q144: 4095.897438 | R144: 4279.291713 | S144: 4801.41919 | T144: 4812.57917 | U144: 4485.016601
A145: 2545 | B145: Asns | C145: 2630.032869 | D145: 1.539686749 | E145: 0.0623484313 | F145: 24.6948755 | G145: 1.21E-134 | H145: 2.50E-132 | I145: 5018.692518 | J145: 3434.029678 | K145: 4770.503507 | L145: 4716.733616 | M145: 1608.991478 | N145: 1598.623427 | O145: 1757.11642 | P145: 1823.52582 | Q145: 1749.144761 | R145: 1708.194635 | S145: 1715.957113 | T145: 1658.881456 | U145: 4484.989829
A146: 10579 | B146: Ldha | C146: 7048.149859 | D146: -0.5647335697 | E146: 0.03948574858 | F146: -14.30221257 | G146: 2.12E-46 | H146: 9.12E-45 | I146: 5303.969089 | J146: 3455.038758 | K146: 5009.934424 | L146: 4124.619596 | M146: 9209.328565 | N146: 8914.643467 | O146: 9553.498196 | P146: 9321.002645 | Q146: 7737.136363 | R146: 7935.935161 | S146: 7039.09248 | T146: 6973.599569 | U146: 4473.390467
A147: 21440 | B147: Ywhag | C147: 3943.879943 | D147: 0.1625871267 | E147: 0.05102306091 | F147: 3.186542002 | G147: 0.001439845794 | H147: 0.004143707443 | I147: 4394.597732 | J147: 4445.330409 | K147: 4666.540082 | L147: 4334.602523 | M147: 3725.291235 | N147: 3600.88288 | O147: 3662.553083 | P147: 3770.95569 | Q147: 3847.721394 | R147: 3991.238273 | S147: 3429.876272 | T147: 3456.969748 | U147: 4460.267687
A148: 11211 | B148: Mcl1 | C148: 3603.859808 | D148: 0.5133369752 | E148: 0.05140564853 | F148: 9.986003287 | G148: 1.76E-23 | H148: 3.04E-22 | I148: 4696.606067 | J148: 4050.932673 | K148: 4620.859183 | L148: 4437.386959 | M148: 3077.515445 | N148: 3090.484656 | O148: 3113.52896 | P148: 3077.947518 | Q148: 3242.171845 | R148: 3329.595874 | S148: 3236.27066 | T148: 3273.017858 | U148: 4451.446221
A149: 16295 | B149: Rad21 | C149: 4032.653343 | D149: 0.1442641887 | E149: 0.04857911735 | F149: 2.969674966 | G149: 0.002981149912 | H149: 0.007993136009 | I149: 4466.544316 | J149: 5043.13424 | K149: 3948.24733 | L149: 4200.919699 | M149: 3537.227296 | N149: 3614.930537 | O149: 4050.099523 | P149: 4085.415626 | Q149: 4052.218454 | R149: 4032.748158 | S149: 3671.373799 | T149: 3688.981141 | U149: 4414.711396
A150: 7141 | B150: Fth1 | C150: 4241.167912 | D150: 0.4876933254 | E150: 0.05388935436 | F150: 9.049901064 | G150: 1.43E-19 | H150: 2.05E-18 | I150: 4602.90819 | J150: 4040.428133 | K150: 4382.215868 | L150: 4501.075475 | M150: 4756.160233 | N150: 4726.568503 | O150: 3944.839996 | P150: 3838.462035 | Q150: 3156.799286 | R150: 3386.200262 | S150: 4645.515723 | T150: 4912.841236 | U150: 4381.656916
A151: 12508 | B151: Myh9 | C151: 6627.685375 | D151: -1.11416875 | E151: 0.03893822552 | F151: -28.61375255 | G151: 4.53E-180 | H151: 1.38E-177 | I151: 4356.951264 | J151: 4003.184763 | K151: 4705.132565 | L151: 4423.514213 | M151: 7827.871236 | N151: 7973.450413 | O151: 5602.677545 | P151: 5540.647337 | Q151: 9480.324899 | R151: 9390.038989 | S151: 8068.259157 | T151: 8160.172119 | U151: 4372.195701
A152: 6032 | B152: Eftud2 | C152: 3769.103767 | D152: 0.2708783596 | E152: 0.05023214896 | F152: 5.392529788 | G152: 6.95E-08 | H152: 3.97E-07 | I152: 4356.951264 | J152: 4364.158962 | K152: 4378.277859 | L152: 4347.84469 | M152: 3244.683391 | N152: 3179.453154 | O152: 3679.298917 | P152: 3666.705386 | Q152: 3615.428616 | R152: 3607.586312 | S152: 3379.946404 | T152: 3408.910245 | U152: 4361.808194
A153: 7201 | B153: G3bp2 | C153: 3740.378825 | D153: 0.2743660491 | E153: 0.05388182113 | F153: 5.091996583 | G153: 3.54E-07 | H153: 1.84E-06 | I153: 4855.557822 | J153: 3986.950474 | K153: 4674.416099 | L153: 3912.114352 | M153: 3328.267364 | N153: 3279.659778 | O153: 3404.18879 | P153: 3151.435438 | Q153: 4048.247638 | R153: 3986.206772 | S153: 3103.803662 | T153: 3153.697714 | U153: 4357.259687
A154: 19883 | B154: Tnks2 | C154: 5173.844432 | D154: -0.5351229949 | E154: 0.04448831422 | F154: -12.02839452 | G154: 2.52E-33 | H154: 6.70E-32 | I154: 4222.260566 | J154: 4641.096839 | K154: 4139.634544 | L154: 4294.245444 | M154: 5096.300567 | N154: 5226.665111 | O154: 5687.602845 | P154: 5594.48151 | Q154: 6220.284379 | R154: 6032.769858 | S154: 5485.152695 | T154: 5445.638827 | U154: 4324.309348
A155: 20137 | B155: Trp53 | C155: 2942.050861 | D155: 0.7518158977 | E155: 0.06033532334 | F155: 12.46062598 | G155: 1.22E-35 | H155: 3.61E-34 | I155: 3540.441196 | J155: 5653.352528 | K155: 3942.734118 | L155: 4084.893097 | M155: 2203.366396 | N155: 2147.418581 | O155: 2624.311386 | P155: 2724.180091 | Q155: 2090.634999 | R155: 2111.9726 | S155: 2129.661738 | T155: 2051.643599 | U155: 4305.355235
A156: 9493 | B156: Igf2bp1 | C156: 5256.954703 | D156: -0.6785167188 | E156: 0.04487678059 | F156: -15.1195498 | G156: 1.20E-51 | H156: 5.85E-50 | I156: 4036.537989 | J156: 4078.626461 | K156: 4508.23214 | L156: 4494.769681 | M156: 5367.948479 | N156: 5201.379327 | O156: 5948.3594 | P156: 5983.283876 | Q156: 6424.781439 | R156: 6490.636461 | S156: 5365.932397 | T156: 5182.968786 | U156: 4279.541568
A157: 3378 | B157: Cad | C157: 3409.098264 | D157: 0.3545362794 | E157: 0.05346177278 | F157: 6.631584794 | G157: 3.32E-11 | H157: 2.66E-10 | I157: 4214.731273 | J157: 4109.185123 | K157: 4180.589832 | L157: 4598.184696 | M157: 2656.112915 | N157: 2595.070601 | O157: 3154.197414 | P157: 3263.376338 | Q157: 3309.675729 | R157: 3285.57024 | S157: 2784.863889 | T157: 2757.621122 | U157: 4275.672731
A158: 14629 | B158: Pa2g4 | C158: 4010.878767 | D158: 0.1942878989 | E158: 0.04956813927 | F158: 3.919612512 | G158: 8.87E-05 | H158: 0.0003236430077 | I158: 4574.464192 | J158: 3908.643902 | K158: 4433.409978 | L158: 4166.237834 | M158: 3865.758745 | N158: 3882.772541 | O158: 3819.246243 | P158: 3810.263182 | Q158: 3933.093953 | R158: 4051.616287 | S158: 3905.738488 | T158: 3779.299861 | U158: 4270.688977
A159: 18667 | B159: Srrm1 | C159: 3359.097316 | D159: 0.4792545274 | E159: 0.06262107511 | F159: 7.653246555 | G159: 1.96E-14 | H159: 2.02E-13 | I159: 4733.415947 | J159: 2857.234927 | K159: 4601.169141 | L159: 4851.677599 | M159: 3025.275462 | N159: 3152.294349 | O159: 1915.005711 | P159: 2034.589961 | Q159: 3262.025929 | R159: 3510.729915 | S159: 3310.655974 | T159: 3055.092872 | U159: 4260.874403
A160: 20386 | B160: Txnrd1 | C160: 3760.163022 | D160: 0.2565148789 | E160: 0.05319616289 | F160: 4.822056047 | G160: 1.42E-06 | H160: 6.78E-06 | I160: 4232.299624 | J160: 5278.053957 | K160: 3806.479024 | L160: 3721.048806 | M160: 3396.759786 | N160: 3391.104527 | O160: 3846.757255 | P160: 3776.082755 | Q160: 3412.916964 | R160: 3650.354072 | S160: 3265.82099 | T160: 3344.2785 | U160: 4259.470353
A161: 8896 | B161: Hat1 | C161: 2939.998138 | D161: 0.8547792635 | E161: 0.060018624 | F161: 14.24190037 | G161: 5.03E-46 | H161: 2.13E-44 | I161: 4454.832082 | J161: 3963.076519 | K161: 4494.842911 | L161: 4094.351787 | M161: 1923.592264 | N161: 2006.942005 | O161: 2949.659015 | P161: 2860.901802 | Q161: 2545.293512 | R161: 2396.252414 | S161: 1768.943912 | T161: 1821.289431 | U161: 4251.775825
A162: 5845 | B162: Dync1h1 | C162: 3689.684473 | D162: 0.05699887069 | E162: 0.05459561769 | F162: 1.044019156 | G162: 0.2964765271 | H162: 0.4059320666 | I162: 4144.457865 | J162: 4666.880711 | K162: 3834.045083 | L162: 4325.143833 | M162: 3320.141144 | N162: 3175.707112 | O162: 2741.532223 | P162: 2559.259527 | Q162: 3946.991811 | R162: 4015.137904 | S162: 3751.872975 | T162: 3795.043492 | U162: 4242.631873
A163: 1684 | B163: Actn4 | C163: 3888.474777 | D163: 0.1562312848 | E163: 0.05218577352 | F163: 2.993752402 | G163: 0.002755694727 | H163: 0.007433149631 | I163: 4494.988314 | J163: 4073.85167 | K163: 4486.179292 | L163: 3900.763923 | M163: 3911.033397 | N163: 3660.819552 | O163: 3275.006643 | P163: 3236.886507 | Q163: 4048.247638 | R163: 4021.42728 | S163: 3790.594097 | T163: 3761.899007 | U163: 4238.9458
A164: 7174 | B164: Fxr1 | C164: 3348.459106 | D164: 0.5188417999 | E164: 0.05458942035 | F164: 9.504438708 | G164: 2.01E-21 | H164: 3.17E-20 | I164: 4296.716915 | J164: 4107.275207 | K164: 4319.995333 | L164: 4200.28912 | M164: 2848.820408 | N164: 2881.642814 | O164: 2955.63967 | P164: 2830.993928 | Q164: 3043.631009 | R164: 2962.296292 | S164: 2866.382042 | T164: 2867.826534 | U164: 4231.069144
A165: 6089 | B165: Eif3b | C165: 4284.265136 | D165: -0.06886405038 | E165: 0.05300626845 | F165: -1.299168049 | G165: 0.1938862638 | H165: 0.2880855437 | I165: 4071.674693 | J165: 4250.518937 | K165: 4284.553257 | L165: 4152.365088 | M165: 4455.490109 | N165: 4105.66204 | O165: 4469.9415 | P165: 4446.873649 | Q165: 4207.080306 | R165: 4324.575223 | S165: 4311.291297 | T165: 4331.155531 | U165: 4189.777994
A166: 6351 | B166: Etf1 | C166: 3970.308122 | D166: 0.09293727664 | E166: 0.04952531268 | F166: 1.876561128 | G166: 0.06057826926 | H166: 0.1100004259 | I166: 4336.873148 | J166: 4141.653702 | K166: 4211.306298 | L166: 3979.586343 | M166: 3577.858394 | N166: 3705.772056 | O166: 3955.605175 | P166: 4005.946131 | Q166: 4058.174679 | R166: 4073.000167 | S166: 3811.992613 | T166: 3785.928758 | U166: 4167.354873
A167: 7383 | B167: Gdi2 | C167: 5241.941888 | D167: -0.5043725197 | E167: 0.04461764087 | F167: -11.30432963 | G167: 1.25E-29 | H167: 2.82E-28 | I167: 4261.580211 | J167: 4176.032197 | K167: 4167.200603 | L167: 4059.669922 | M167: 5712.732367 | N167: 5870.047826 | O167: 5413.688849 | P167: 5427.851925 | Q167: 6091.232836 | R167: 6006.354477 | S167: 5763.333391 | T167: 5953.578054 | U167: 4166.120733
A168: 9177 | B168: Hnrnpc | C168: 3819.256277 | D168: 0.2238742964 | E168: 0.05235609441 | F168: 4.275993061 | G168: 1.90E-05 | H168: 7.73E-05 | I168: 4213.058096 | J168: 4240.969355 | K168: 4056.148763 | L168: 4076.064986 | M168: 3602.237053 | N168: 3721.692734 | O168: 4035.745951 | P168: 3868.369909 | Q168: 3633.297291 | R168: 3586.202432 | S168: 3433.95218 | T168: 3363.336579 | U168: 4146.5603
A169: 15654 | B169: Ppp2ca | C169: 4870.767401 | D169: -0.4117328834 | E169: 0.04457827111 | F169: -9.236178818 | G169: 2.55E-20 | H169: 3.82E-19 | I169: 4064.981988 | J169: 4401.402332 | K169: 4143.572552 | L169: 3922.834201 | M169: 5128.805446 | N169: 5130.204529 | O169: 5087.145089 | P169: 5105.701394 | Q169: 5438.033487 | R169: 5382.448337 | S169: 5347.590813 | T169: 5296.488646 | U169: 4133.197768
A170: 12887 | B170: Nid2 | C170: 2650.789644 | D170: 1.037991273 | E170: 0.06366444695 | F170: 16.30409628 | G170: 9.23E-60 | H170: 5.58E-58 | I170: 4118.523631 | J170: 4561.835309 | K170: 3710.391616 | L170: 4083.631938 | M170: 1527.729282 | N170: 1425.368984 | O170: 2779.808415 | P170: 2700.253791 | Q170: 2033.058156 | R170: 1983.669322 | S170: 1472.421632 | T170: 1412.783658 | U170: 4118.595624
A171: 12369 | B171: Mtf2 | C171: 2439.597149 | D171: 1.385872021 | E171: 0.0669813904 | F171: 20.6904039 | G171: 4.23E-95 | H171: 4.95E-93 | I171: 4238.155742 | J171: 4168.392532 | K171: 4123.88251 | L171: 3894.45813 | M171: 1304.838687 | N171: 1327.035381 | O171: 2059.73756 | P171: 2077.315496 | Q171: 1715.392819 | R171: 1547.186598 | S171: 1418.415856 | T171: 1400.354476 | U171: 4106.222228
A172: 17521 | B172: Sf1 | C172: 3750.164494 | D172: 0.1115604058 | E172: 0.05141492822 | F172: 2.16980573 | G172: 0.03002156615 | H172: 0.06045612739 | I172: 3862.527647 | J172: 4270.573059 | K172: 4011.255466 | L172: 4192.722167 | M172: 3526.779299 | N172: 3433.2475 | O172: 3796.519754 | P172: 3786.336883 | Q172: 3526.08524 | R172: 3615.133564 | S172: 3511.394425 | T172: 3469.39893 | U172: 4084.269585
A173: 15898 | B173: Prrc2c | C173: 3590.488449 | D173: -0.02636598243 | E173: 0.05882136593 | F173: -0.4482381872 | G173: 0.6539813057 | H173: 0.7472950084 | I173: 3828.227531 | J173: 4534.141521 | K173: 3617.454615 | L173: 4308.74877 | M173: 3006.701246 | N173: 3058.643299 | O173: 3263.045333 | P173: 3046.330622 | Q173: 3833.823535 | R173: 3954.75989 | S173: 3438.028087 | T173: 3195.956932 | U173: 4072.143109
A174: 18912 | B174: Supt16h | C174: 3659.255671 | D174: 0.187168975 | E174: 0.05218947246 | F174: 3.58633583 | G174: 0.0003353570252 | H174: 0.001106278516 | I174: 4098.445515 | J174: 4280.122641 | K174: 3883.663991 | L174: 4018.682264 | M174: 3248.166056 | N174: 3161.659454 | O174: 3785.754575 | P174: 3726.521134 | Q174: 3526.08524 | R174: 3660.417074 | S174: 3284.162574 | T174: 3237.387537 | U174: 4070.228603
A175: 6188 | B175: Enah | C175: 2920.709375 | D175: 0.6131147729 | E175: 0.05965253345 | F175: 10.27810115 | G175: 8.85E-25 | H175: 1.64E-23 | I175: 3576.414488 | J175: 5285.693622 | K175: 3423.704597 | L175: 3903.286241 | M175: 2079.151325 | N175: 2115.577224 | O175: 2690.09859 | P175: 2694.272217 | Q175: 2422.198194 | R175: 2270.464886 | S175: 2273.337482 | T175: 2314.31364 | U175: 4047.274737
A176: 16711 | B176: Rif1 | C176: 2772.721122 | D176: 0.8200088671 | E176: 0.06185473763 | F176: 13.25700987 | G176: 4.11E-40 | H176: 1.40E-38 | I176: 4279.148563 | J176: 4044.247966 | K176: 3738.745277 | L176: 4115.791485 | M176: 1754.102542 | N176: 1648.258483 | O176: 2454.460786 | P176: 2473.808458 | Q176: 2515.512387 | R176: 2348.453154 | S176: 1932.999194 | T176: 1967.125164 | U176: 4044.483323
A177: 18572 | B177: Spnb2 | C177: 4560.518164 | D177: -0.4011230059 | E177: 0.04637520746 | F177: -8.649513994 | G177: 5.17E-18 | H177: 6.78E-17 | I177: 4044.903871 | J177: 4162.662782 | K177: 3907.292042 | L177: 4022.46574 | M177: 4962.798389 | N177: 5107.728277 | O177: 3395.815873 | P177: 3430.860434 | Q177: 5358.617152 | R177: 5327.101824 | S177: 5523.873818 | T177: 5482.09776 | U177: 4034.331109
A178: 17526 | B178: Sf3b2 | C178: 3717.126504 | D178: 0.1672858647 | E178: 0.05376566157 | F178: 3.111388566 | G178: 0.001862097384 | H178: 0.005229398741 | I178: 3906.030233 | J178: 4272.482975 | K178: 3933.282898 | L178: 3978.325185 | M178: 3604.55883 | N178: 3446.358647 | O178: 3800.108147 | P178: 3674.395982 | Q178: 3506.231156 | R178: 3455.383403 | S178: 3566.419178 | T178: 3461.941421 | U178: 4022.530323
A179: 11218 | B179: Mcm6 | C179: 3654.664155 | D179: 0.2180465674 | E179: 0.05171755283 | F179: 4.21610373 | G179: 2.49E-05 | H179: 9.91E-05 | I179: 4044.067283 | J179: 4274.392891 | K179: 4025.432297 | L179: 3739.335607 | M179: 3349.163357 | N179: 3261.866078 | O179: 3739.105466 | P179: 3727.375645 | Q179: 3450.639722 | R179: 3498.151162 | S179: 3339.187327 | T179: 3407.253021 | U179: 4020.80702
A180: 16948 | B180: Rpl41 | C180: 3736.737875 | D180: 0.2692580548 | E180: 0.05759842044 | F180: 4.674747201 | G180: 2.94E-06 | H180: 1.34E-05 | I180: 4060.799047 | J180: 3979.310808 | K180: 4001.016644 | L180: 4001.656621 | M180: 3949.342718 | N180: 3805.97868 | O180: 3487.917959 | P180: 3349.681918 | Q180: 3216.361536 | R180: 3498.151162 | S180: 3672.392776 | T180: 3818.244631 | U180: 4010.69578
A181: 3264 | B181: C1qbp | C181: 3423.436124 | D181: 0.4110289116 | E181: 0.05755363162 | F181: 7.141667693 | G181: 9.22E-13 | H181: 8.52E-12 | I181: 4229.78986 | J181: 3584.913073 | K181: 4059.29917 | L181: 4040.121962 | M181: 3100.733215 | N181: 3041.78611 | O181: 3475.956649 | P181: 3231.759443 | Q181: 3176.653369 | R181: 3184.940217 | S181: 2914.273957 | T181: 3041.006466 | U181: 3978.531016
A182: 12627 | B182: Nap1l1 | C182: 4902.762 | D182: -0.4724613267 | E182: 0.04682346604 | F182: -10.09026812 | G182: 6.10E-24 | H182: 1.09E-22 | I182: 3807.312827 | J182: 4493.078319 | K182: 3724.568447 | L182: 3857.253948 | M182: 5002.268598 | N182: 5113.34734 | O182: 5600.285283 | P182: 5839.726079 | Q182: 5303.025718 | R182: 5265.465935 | S182: 5434.20385 | T182: 5392.607651 | U182: 3970.553385
A183: 19370 | B183: Tfrc | C183: 3228.469633 | D183: 0.5576119726 | E183: 0.05556392919 | F183: 10.0355029 | G183: 1.06E-23 | H183: 1.87E-22 | I183: 4392.924556 | J183: 3103.614141 | K183: 4245.173172 | L183: 4059.669922 | M183: 2849.981297 | N183: 2894.753961 | O183: 2670.960495 | P183: 2769.469158 | Q183: 2992.010392 | R183: 2978.64867 | S183: 2948.919172 | T183: 2835.510661 | U183: 3950.345448
A184: 9708 | B184: Ipo7 | C184: 3295.183949 | D184: 0.340138508 | E184: 0.05430821606 | F184: 6.263113259 | G184: 3.77E-10 | H184: 2.74E-09 | I184: 4031.51846 | J184: 3486.552379 | K184: 3889.964804 | L184: 4388.201769 | M184: 2819.798196 | N184: 2782.372701 | O184: 2980.75842 | P184: 2913.026954 | Q184: 3252.098887 | R184: 3129.593704 | S184: 2936.691449 | T184: 2931.629667 | U184: 3949.059353
A185: 8957 | B185: Hdlbp | C185: 5594.808025 | D185: -0.5784618725 | E185: 0.0423154229 | F185: -13.6702373 | G185: 1.53E-42 | H185: 5.76E-41 | I185: 4255.724094 | J185: 4029.923593 | K185: 3734.019667 | L185: 3761.405885 | M185: 6757.532028 | N185: 6688.558004 | O185: 5260.584082 | P185: 5286.00315 | Q185: 6315.58398 | R185: 6387.490688 | S185: 7403.886213 | T185: 7256.984912 | U185: 3945.26831
A186: 8383 | B186: Gnb1 | C186: 5088.669875 | D186: -0.5259551205 | E186: 0.04441730027 | F186: -11.84122217 | G186: 2.39E-32 | H186: 6.08E-31 | I186: 3830.737296 | J186: 4154.068159 | K186: 3965.574568 | L186: 3780.953845 | M186: 5637.274614 | N186: 5648.094837 | O186: 5601.481414 | P186: 5582.518361 | Q186: 5457.88757 | R186: 5563.582377 | S186: 5962.033888 | T186: 5879.831576 | U186: 3932.833467
A187: 2387 | B187: Arhgdia | C187: 5103.536599 | D187: -0.6717006288 | E187: 0.04504574987 | F187: -14.91152064 | G187: 2.77E-50 | H187: 1.30E-48 | I187: 3466.821436 | J187: 4670.700543 | K187: 4052.210755 | L187: 3524.308045 | M187: 6151.548225 | N187: 6177.22327 | O187: 5240.249855 | P187: 5268.912936 | Q187: 5436.048078 | R187: 5593.771384 | S187: 5821.415075 | T187: 5839.229582 | U187: 3928.510195
A188: 15897 | B188: Prrc2b | C188: 3840.09787 | D188: -0.2105117686 | E188: 0.05207100105 | F188: -4.042783207 | G188: 5.28E-05 | H188: 0.000199785987 | I188: 3355.555207 | J188: 4825.403771 | K188: 3615.09181 | L188: 3914.00609 | M188: 3704.395242 | N188: 3540.009697 | O188: 3679.298917 | P188: 3715.412495 | Q188: 3845.735985 | R188: 3913.250006 | S188: 3979.104825 | T188: 3993.910399 | U188: 3927.51422
A189: 7296 | B189: Gars | C189: 3128.89312 | D189: 0.6308900896 | E189: 0.05609034554 | F189: 11.24774832 | G189: 2.38E-29 | H189: 5.31E-28 | I189: 3947.023054 | J189: 3814.10304 | K189: 3841.9211 | L189: 3954.363169 | M189: 2810.511087 | N189: 2717.753476 | O189: 2966.404849 | P189: 2948.916403 | Q189: 2565.147596 | R189: 2535.876571 | S189: 2722.706298 | T189: 2721.990801 | U189: 3889.352591
A190: 11214 | B190: Mcm3 | C190: 3376.305236 | D190: 0.2060165871 | E190: 0.05547708706 | F190: 3.7135437 | G190: 0.0002043771541 | H190: 0.0006995138927 | I190: 3690.190481 | J190: 4391.85275 | K190: 3727.718854 | L190: 3624.570164 | M190: 2982.322587 | N190: 2888.198388 | O190: 3591.981355 | P190: 3554.764485 | Q190: 3117.091119 | R190: 3266.70211 | S190: 2883.704649 | T190: 2796.565892 | U190: 3858.583062
A191: 14652 | B191: Pafah1b1 | C191: 4481.802927 | D191: -0.4144367364 | E191: 0.04828271001 | F191: -8.583543391 | G191: 9.20E-18 | H191: 1.19E-16 | I191: 3774.685888 | J191: 3860.895992 | K191: 3881.301185 | L191: 3873.018432 | M191: 4699.276696 | N191: 4798.679812 | O191: 4223.538516 | P191: 4373.385729 | Q191: 5088.601616 | R191: 4982.443997 | S191: 5060.239325 | T191: 5165.567932 | U191: 3847.475374
A192: 6091 | B192: Eif3d | C192: 3392.271782 | D192: 0.2965564276 | E192: 0.05318103422 | F192: 5.576356909 | G192: 2.46E-08 | H192: 1.49E-07 | I192: 3879.259411 | J192: 3697.59814 | K192: 3905.716838 | L192: 3897.611027 | M192: 3249.326945 | N192: 3181.326175 | O192: 3151.805152 | P192: 3134.345224 | Q192: 3142.901427 | R192: 3171.103589 | S192: 3164.942276 | T192: 3131.325187 | U192: 3845.046354
A193: 6117 | B193: Eif5 | C193: 3900.593489 | D193: -0.005271888478 | E193: 0.05157912437 | F193: -0.102209732 | G193: 0.9185902032 | H193: 0.9445721954 | I193: 3962.918229 | J193: 3540.984996 | K193: 3802.541015 | L193: 4069.759192 | M193: 3644.029039 | N193: 3835.947016 | O193: 3944.839996 | P193: 4006.800642 | Q193: 4024.422737 | R193: 3938.407512 | S193: 4012.731063 | T193: 4023.740436 | U193: 3844.050858
A194: 14769 | B194: Pcbp1 | C194: 3899.442463 | D194: -0.08635631347 | E194: 0.05297298567 | F194: -1.630195323 | G194: 0.1030602221 | H194: 0.1721703963 | I194: 3583.107193 | J194: 4001.274847 | K194: 3893.902813 | L194: 3883.738281 | M194: 3986.49115 | N194: 4141.249439 | O194: 4242.676612 | P194: 4090.54269 | Q194: 3748.450976 | R194: 3850.356242 | S194: 3735.569344 | T194: 3635.949965 | U194: =AVERAGE(I194:L194) -> 3840.505783
A195: 11213 | B195: Mcm2 | C195: 3063.035371 | D195: 0.4436083878 | E195: 0.05783465329 | F195: 7.670286975 | G195: 1.72E-14 | H195: 1.78E-13 | I195: 3644.178131 | J195: 4383.258126 | K195: 3671.011531 | L195: 3645.379282 | M195: 2407.682774 | N195: 2505.165592 | O195: 3036.976577 | P195: 2938.662275 | Q195: 2664.418014 | R195: 2691.853106 | S195: 2615.713723 | T195: 2552.125317 | U195: 3835.956768
A196: 7149 | B196: Ftsj3 | C196: 2994.905872 | D196: 0.5772332569 | E196: 0.05694254654 | F196: 10.13711701 | G196: 3.78E-24 | H196: 6.80E-23 | I196: 3997.218345 | J196: 3800.733626 | K196: 3796.240202 | L196: 3709.698377 | M196: 2567.885388 | N196: 2472.387725 | O196: 2643.449482 | P196: 2683.163578 | Q196: 2688.242914 | R196: 2671.727101 | S196: 2436.373787 | T196: 2471.749942 | U196: 3825.972637
A197: 15044 | B197: Pfn1 | C197: 5141.508165 | D197: -0.8003384691 | E197: 0.04713806113 | F197: -16.97860391 | G197: 1.18E-64 | H197: 7.79E-63 | I197: 3143.898397 | J197: 4867.421932 | K197: 3874.21277 | L197: 3344.592928 | M197: 6341.933941 | N197: 6183.778844 | O197: 5400.531408 | P197: 5258.658808 | Q197: 5483.697879 | R197: 5467.983856 | S197: 6262.632076 | T197: 6068.755138 | U197: 3807.531507
A198: 16933 | B198: Rpl32 | C198: 3485.251418 | D198: 0.1796341646 | E198: 0.05987942433 | F198: 2.999931389 | G198: 0.002700404271 | H198: 0.007295644122 | I198: 3557.17296 | J198: 3638.390732 | K198: 3997.866237 | L198: 4001.026042 | M198: 3371.220239 | N198: 3470.70792 | O198: 3454.426291 | P198: 3257.394764 | Q198: 3017.820701 | R198: 3244.060355 | S198: 3326.959604 | T198: 3485.971172 | U198: 3798.613993
A199: 16774 | B199: Rnf10 | C199: 2933.551017 | D199: 0.55147493 | E199: 0.05891413529 | F199: 9.360655593 | G199: 7.92E-21 | H199: 1.22E-19 | I199: 3637.485425 | J199: 3733.886552 | K199: 3756.072515 | L199: 3950.579693 | M199: 2601.551155 | N199: 2490.181424 | O199: 2565.700968 | P199: 2624.20234 | Q199: 2497.643712 | R199: 2469.209181 | S199: 2468.981048 | T199: 2407.118197 | U199: 3769.506046
A200: 2274 | B200: Aplp2 | C200: 3184.022258 | D200: 0.394394936 | E200: 0.05719059365 | F200: 6.896150413 | G200: 5.34E-12 | H200: 4.62E-11 | I200: 3856.67153 | J200: 4093.905792 | K200: 3501.677165 | L200: 3614.480894 | M200: 2998.575026 | N200: 2929.40485 | O200: 2625.507517 | P200: 2731.870687 | Q200: 2944.360592 | R200: 2925.817909 | S200: 2923.444749 | T200: 3062.550381 | U200: 3766.683845
... 4300 more rows
